{"text_format":"1","workbook":"xlsx","n_sheets":6,"sheets":["基本情報","付加サービス情報","list","変換","OCNメニュー","改版履歴"],"not_rendered":{"charts":0,"images":1,"macros":1,"external_links":0,"defined_names":120,"comments":0,"pivot_tables":0},"unopened":[],"bounds":{"document_bytes":16777216,"sheet_cells":100000,"rows_first":2000,"rows_last":500,"rows_between":2000,"halvings":0,"cell_chars":16384,"cell_head_chars":4096},"cells_cut":0,"cells_raw":0,"read":"whole","date_system":"1900"}

{"sheet":"基本情報","index":0,"n_rows":108,"n_cols":60,"rows_kept":108,"cut":false,"hidden":false,"merged":[[80,13,80,32],[80,33,80,51],[81,13,81,32],[81,33,81,51],[90,0,90,12],[90,13,90,32],[90,33,90,51],[83,0,83,12],[83,13,83,51],[87,0,87,12],[87,13,87,32],[87,33,87,51],[88,0,88,12],[88,13,88,32],[88,33,88,51],[89,0,89,12],[89,13,89,32],[89,33,89,51],[84,0,84,12],[84,13,84,51],[74,0,81,5],[74,6,74,12],[74,33,74,51],[75,13,75,32],[75,33,75,51],[76,13,76,40],[76,41,76,51],[77,13,77,32],[77,33,77,51],[78,13,78,32],[78,33,78,51],[75,6,75,12],[76,6,76,12],[77,6,77,12],[78,6,78,12],[79,6,81,7],[81,8,81,12],[80,8,80,12],[68,13,68,32],[69,13,69,32],[79,8,79,12],[79,13,79,32],[74,13,74,32],[69,8,69,12],[68,8,68,12],[70,0,70,51],[72,0,73,5],[73,6,73,12],[72,6,72,12],[72,13,72,32],[72,33,72,51],[73,13,73,32],[73,33,73,51],[61,0,69,5],[61,13,61,32],[63,6,63,12],[63,13,63,40],[63,41,63,51],[64,6,64,12],[64,13,64,32],[69,33,69,51],[64,33,64,51],[65,6,65,12],[65,13,65,32],[65,33,65,51],[66,6,66,12],[66,13,66,32],[66,33,66,51],[67,6,67,12],[67,13,67,32],[67,33,67,51],[68,33,68,51],[68,6,69,7],[57,0,57,51],[59,0,59,12],[59,13,59,32],[59,33,59,51],[60,0,60,12],[60,13,60,32],[60,33,60,51],[62,6,62,12],[62,13,62,32],[62,33,62,51],[61,33,61,51],[61,6,61,12],[55,0,55,51],[56,0,56,12],[56,13,56,32],[56,33,56,51],[54,33,54,51],[53,13,53,32],[53,33,53,51],[43,13,43,32],[44,13,44,32],[45,13,45,32],[46,13,46,32],[47,13,47,32],[48,13,48,32],[51,13,51,32],[51,33,51,51],[47,33,47,51],[44,6,44,12],[36,0,37,5],[36,6,36,12],[37,6,37,12],[36,13,36,32],[36,33,36,51],[37,13,37,32],[37,33,37,51],[17,0,17,5],[17,6,17,51],[21,6,21,12],[33,13,33,32],[33,33,33,51],[33,0,33,12],[18,13,18,32],[18,33,18,51],[19,13,19,40],[19,41,19,51],[20,13,20,32],[20,33,20,51],[21,13,21,32],[21,33,21,51],[32,0,32,12],[32,13,32,32],[32,33,32,51],[34,0,34,12],[34,13,34,32],[34,33,34,51],[16,13,16,38],[22,0,22,51],[23,33,23,51],[24,13,24,32],[24,33,24,51],[30,0,30,12],[40,6,40,12],[45,6,45,12],[46,0,48,5],[46,6,46,12],[47,6,47,12],[48,6,48,12],[46,33,46,51],[38,0,38,51],[40,0,45,5],[40,33,40,51],[41,33,41,51],[42,41,42,51],[43,33,43,51],[44,33,44,51],[45,33,45,51],[2,28,2,31],[2,32,2,39],[2,40,2,43],[2,44,2,51],[13,0,13,12],[13,13,13,32],[13,33,13,51],[12,0,12,51],[25,13,25,32],[25,33,25,51],[14,0,14,5],[14,6,14,51],[23,13,23,32],[15,0,15,12],[15,13,15,38],[16,0,16,12],[4,0,4,51],[10,0,10,12],[9,0,9,12],[11,0,11,12],[20,6,20,12],[9,33,9,51],[5,1,6,51],[7,1,7,51],[9,13,9,32],[10,13,10,32],[10,33,10,51],[30,13,30,32],[15,39,16,42],[16,43,16,51],[15,43,15,51],[26,13,26,32],[26,33,26,51],[30,33,30,51],[29,0,29,51],[11,13,11,32],[11,33,11,51],[19,6,19,12],[18,6,18,12],[18,0,21,5],[26,6,26,12],[25,6,25,12],[23,6,23,12],[24,6,24,12],[23,0,26,5],[28,0,28,51],[35,0,35,51],[95,6,95,12],[95,13,95,32],[95,33,95,51],[82,0,82,51],[31,0,31,12],[48,33,48,51],[49,0,49,51],[50,13,50,32],[50,33,50,51],[40,13,40,32],[41,13,41,32],[42,13,42,40],[95,0,101,5],[86,0,86,51],[31,13,31,32],[31,33,31,51],[52,13,52,32],[52,33,52,51],[54,13,54,32],[41,6,41,12],[42,6,42,12],[43,6,43,12],[97,13,97,32],[103,0,107,5],[103,6,103,12],[103,13,103,32],[103,33,103,51],[104,6,104,12],[104,13,104,32],[104,33,104,51],[105,6,105,12],[105,13,105,32],[105,33,105,51],[106,6,106,12],[106,13,106,32],[106,33,106,51],[107,6,107,12],[107,13,107,32],[107,33,107,51],[99,33,99,51],[91,0,91,12],[91,13,91,32],[91,33,91,51],[92,0,92,12],[92,13,92,32],[92,33,92,51],[98,6,98,12],[98,13,98,32],[98,33,98,51],[94,0,94,51],[102,0,102,51],[54,6,54,12],[53,6,53,12],[52,6,52,12],[50,6,50,12],[51,6,51,12],[50,0,54,5],[39,0,39,51],[58,0,58,51],[71,0,71,51],[79,33,79,51],[100,6,100,12],[100,13,100,32],[100,33,100,51],[101,6,101,12],[101,13,101,32],[101,33,101,51],[99,6,99,12],[99,13,99,32],[96,6,96,12],[96,13,96,32],[96,33,96,51],[97,6,97,12],[97,33,97,51]]}
[null,null,null,null,null,null,null,null,null,null,null,null,null,null,null,null,null,null,null,null,null,null,null,null,null,null,null,null,null,null,null,null,null,null,null,null,null,null,null,null,null,null,null,null,null,null,null,null,null,null,null,{"$f":"CONCATENATE(BC1,BD1,BE1,BF1)","v":"Ver.1.00A(2020/3/19)"},null,null,"Ver.","1.00","A","(2020/3/19)"]
[null,null,null,null,null,null,null,null,null,null,null,null,null,null,null,null,null,null,null,null,null,null,null,null,null,null,null,null,null,null,null,null,null,null,null,null,null,null,null,null,null,null,null,null,null,null,null,null,null,null,null,null,null,null,"サービス","forVPNライト",{"$f":"IF($BD$2=\"forVPNライト\",1,IF($BD$2=\"IP1/forVPN\",2,IF($BD$2=\"IP8以上\",3,2)))","v":1}]
[null,null,null,null,null,null,null,null,null,null,null,null,null,null,null,null,null,null,null,null,null,null,null,null,null,null,null,null,"オーダ管理番号",null,null,null,null,null,null,null,null,null,null,null,"オーダ登録番号",null,null,null,null,null,null,null,null,null,null,null,null,null,"異動種別","新設","-"]
[]
["第６種オープンコンピュータ通信網サービス　for VPNライト　契約申込書（新規）"]
["レ","NTTコミュニケーションズ株式会社の定める｢IP通信網サービス契約約款（https://www.ntt.com/about-us/disclosure/tariff/yakkan/ip.html）｣｢重要事項に関する説明｣｢各種利用規約｣｢お申込みに関する注意事項｣の内容について承諾の上、下記のとおり申し込みます｡個人情報の取扱いについては、「プライバシーポリシー（https://www.ntt.com/about-us/hp/privacy.html）」の内容を承諾します。",null,null,null,null,null,null,null,null,null,null,null,null,null,null,null,null,null,null,null,null,null,null,null,null,null,null,null,null,null,null,null,null,null,null,null,null,null,null,null,null,null,null,null,null,null,null,null,null,null,null,null,null,"アクセスタイプ：(F)","アクセスタイプ：光コラボ","回線が光ネクスト","フレッツ・ISDN","forVPN/動的IP\nかつ光コラボ","IPoEメニュー"]
[]
[null,"※必ずチェックを入れてください。チェックがない場合はお申込みいただけません。",null,null,null,null,null,null,null,null,null,null,null,null,null,null,null,null,null,null,null,null,null,null,null,null,null,null,null,null,null,null,null,null,null,null,null,null,null,null,null,null,null,null,null,null,null,null,null,null,null,null,null,null,{"$f":"COUNTIF($N$32,\"*(F)*\")>0","v":false},{"$f":"COUNTIF($N$32,\"*OCN光【光一括提供型】*\")>0","v":false},{"$f":"COUNTIF($BD$33,\"*hn*\")>0","v":false},{"$f":"$N$32=\"フレッツ・ISDN\"","v":false},{"$f":"$BD$33=\"forVPNhnc\"","v":false},{"$f":"COUNTIF($N$32,\"*IPoE*\")>0","v":false}]
[]
["お申込年月日（必須）",null,null,null,null,null,null,null,null,null,null,null,null,null,null,null,null,null,null,null,null,null,null,null,null,null,null,null,null,null,null,null,null,"YYYY/MM/DD（半角）"]
["開通希望年月日（必須）",null,null,null,null,null,null,null,null,null,null,null,null,null,null,null,null,null,null,null,null,null,null,null,null,null,null,null,null,null,null,null,null,"YYYY/MM/DD（半角）\n※お申込みいただく日付から７営業日以降の土日祝日を除く日付をご記入ください。\n※OCNサービスの課金開始日となります。\n※手続き上、お客様のご利用開始希望日に添えない場合があります。"]
["お客さま番号",null,null,null,null,null,null,null,null,null,null,null,null,null,null,null,null,null,null,null,null,null,null,null,null,null,null,null,null,null,null,null,null,"※記入不要（ＮＴＴ－Ｃｏｍ記入欄）"]
["共通顧客ID"]
["共通顧客ID（必須）",null,null,null,null,null,null,null,null,null,null,null,null,"C1234567890",null,null,null,null,null,null,null,null,null,null,null,null,null,null,null,null,null,null,null,"C＋半角数字10桁"]
["ご契約者名",null,null,null,null,null,"※新規開通時（開通後にご契約者名の変更をOCNにしている場合はその名義）に申込まれた名義をご記入ください。\n　または登記簿謄本（抄本）に登録されているご契約者名をご記入ください。\n※本申込書には必ず押印をお願い致します。"]
["フリガナ（必須）",null,null,null,null,null,null,null,null,null,null,null,null,null,null,null,null,null,null,null,null,null,null,null,null,null,null,null,null,null,null,null,null,null,null,null,null,null,null,null,null,null,null,"全角35桁以内"]
["契約者名（必須）",null,null,null,null,null,null,null,null,null,null,null,null,null,null,null,null,null,null,null,null,null,null,null,null,null,null,null,null,null,null,null,null,null,null,null,null,null,null,null,null,null,null,"全角40桁以内\n※正式名称を40文字以内でご記入いただきますが、弊社の都合により、名称を省略させていただくことがありますので、ご了承ください。"]
["ご契約者住所",null,null,null,null,null,"※個人の場合は戸籍上のご住所、法人の場合は登記簿上のご住所を記入ください。"]
["ご住所（必須）",null,null,null,null,null,"郵便番号（必須）",null,null,null,null,null,null,null,null,null,null,null,null,null,null,null,null,null,null,null,null,null,null,null,null,null,null,"半角数字７桁"]
[null,null,null,null,null,null,"ご住所（必須）",null,null,null,null,null,null,null,null,null,null,null,null,null,null,null,null,null,null,null,null,null,null,null,null,null,null,null,null,null,null,null,null,null,null,"全角46桁以内\n※住所を都道府県からご記入ください。"]
[null,null,null,null,null,null,"番地（必須）",null,null,null,null,null,null,null,null,null,null,null,null,null,null,null,null,null,null,null,null,null,null,null,null,null,null,"全角20桁以内"]
[null,null,null,null,null,null,"ビル名等",null,null,null,null,null,null,null,null,null,null,null,null,null,null,null,null,null,null,null,null,null,null,null,null,null,null,"全角20桁以内"]
["事務担当者＜お申込に関するご連絡先＞"]
["連絡先",null,null,null,null,null,"部課名",null,null,null,null,null,null,null,null,null,null,null,null,null,null,null,null,null,null,null,null,null,null,null,null,null,null,"全角20桁以内"]
[null,null,null,null,null,null,"担当者名（必須）",null,null,null,null,null,null,null,null,null,null,null,null,null,null,null,null,null,null,null,null,null,null,null,null,null,null,"全角10桁以内"]
[null,null,null,null,null,null,"電話番号（必須）",null,null,null,null,null,null,null,null,null,null,null,null,null,null,null,null,null,null,null,null,null,null,null,null,null,null,"ハイフンを含む半角10桁～13桁\n（数字、ハイフンのみ）"]
[null,null,null,null,null,null,"e-mail（必須）",null,null,null,null,null,null,null,null,null,null,null,null,null,null,null,null,null,null,null,null,null,null,null,null,null,null,"半角英数64桁以内\n※ご契約に関する連絡用として、既存のメールアドレスをご記入ください。\n※ご担当者が複数の場合は、カンマで区切りで記入ください。\n※メールアドレスをお持でない方は「a@a」をご記入ください。"]
[]
["お申込みタイプ"]
["【契約タイプについて】\n※以下で選択いただいたＮＴＴ東日本/ＮＴＴ西日本会社の提供するフレッツの「アクセスタイプ」によりOCNの提供メニューを決定いたします。\n　 お申込み内容に相違がある場合は、通信ができないこととなりますので、ご注意ください。\n\n※ＮＴＴ東日本/ＮＴＴ西日本会社のアクセスタイプとOCN契約タイプが不一致の場合は通信が出来ませんので、ご注意下さい。\n　（「OCN契約タイプ」や「IP種別」、「ＮＴＴ東日本/NTT西日本会社のアクセスタイプ」が変更となった場合は必ずご連絡ください。）\n\n※NTT東日本のフレッツ 光ネクスト ギガファミリー/ギガマンション・スマートタイプ、ファミリー/マンション・ギガラインタイプをご利用される場合は、対応する契約タイプをご選択ください。\n　 ハイスピードタイプ等、異なる契約タイプを選択された場合は通信が出来ませんのでご注意願います。"]
["IP種別（必須）",null,null,null,null,null,null,null,null,null,null,null,null,"forVPNライト"]
["アクセスタイプ（必須）",null,null,null,null,null,null,null,null,null,null,null,null,null,null,null,null,null,null,null,null,null,null,null,null,null,null,null,null,null,null,null,null,"選択してください",null,null,null,null,null,null,null,null,null,null,null,null,null,null,null,null,null,null,null,null,"アクセスタイプ\n【リスト】",{"$f":"IF(OR($N$31=\"IP32\",$N$31=\"IP64\"),\"list_AL_4\",IF($N$31=\"forVPNライト\",\"list_AL_3\",IF($N$31=\"動的1to1\",\"list_AL_2\",\"list_AL_1\")))","v":"list_AL_3"},null,null,"契約タイプ制御用\n合体名",{"$f":"__\\osApptypeIpTypeCd&__\\osApptypeAccesstypeCd","v":"forVPNライト"}]
["契約タイプ（必須）",null,null,null,null,null,null,null,null,null,null,null,null,null,null,null,null,null,null,null,null,null,null,null,null,null,null,null,null,null,null,null,null,"選択してください",null,null,null,null,null,null,null,null,null,null,null,null,null,null,null,null,null,null,null,null,"契約タイプ\n【リスト】",{"$f":"IF(ISERROR(VLOOKUP($BH$32,変換!B:C,2,FALSE)),\"null\",VLOOKUP($BH$32,変換!B:C,2,FALSE))","v":"null"},"契約タイプ\n【条件付き書式】",{"$f":"$N$32<>\"フレッツ・ISDN\"","v":true}]
["OCN提供メニュー",null,null,null,null,null,null,null,null,null,null,null,null,{"$f":"IF(ISERROR(VLOOKUP($BH$34,OCNメニュー!$E:$G,2,FALSE)),\"\",VLOOKUP($BH$34,OCNメニュー!$E:$G,2,FALSE))","v":""},null,null,null,null,null,null,null,null,null,null,null,null,null,null,null,null,null,null,null,"記入不要",null,null,null,null,null,null,null,null,null,null,null,null,null,null,null,null,null,null,null,null,null,null,null,null,"提供メニュー/認証ドメイン\n検索用",{"$f":"__\\osApptypeIpTypeCd&__\\osApptypeAccesstypeCd&__\\osApptypeContracttypeCd","v":"forVPNライト"}]
["OCN認証ドメイン",null,null,null,null,null,null,null,null,null,null,null,null,{"$f":"IF(ISERROR(VLOOKUP($BH$34,OCNメニュー!$E:$G,3,FALSE)),\"\",VLOOKUP($BH$34,OCNメニュー!$E:$G,3,FALSE))","v":""},null,null,null,null,null,null,null,null,null,null,null,null,null,null,null,null,null,null,null,"記入不要"]
["NTT東日本/西日本　フレッツサービス申込み状況"]
["NTT東日本／NTT西日本フレッツ申込み状況",null,null,null,null,null,"開通済み／申込済み\n（必須）",null,null,null,null,null,null,null,null,null,null,null,null,null,null,null,null,null,null,null,null,null,null,null,null,null,null,"選択してください\n※OCN光アクセス「Ｂフレッツ」(フレッツ別契約型)については、お客さまでアクセス回線がご用意できる場合のみ提供となります。詳しくはＮＴＴ東日本・西日本会社へご確認ください。",null,null,null,null,null,null,null,null,null,null,null,null,null,null,null,null,null,null,null,null,null,null,"申込み状況\n【条件付き書式】",{"$f":"OR($N$32=\"\",AND($N$32<>\"\",$BC$8<>TRUE,$BD$8<>TRUE))","v":true}]
[null,null,null,null,null,null,"開通予定日\n（申込済み）（必須）",null,null,null,null,null,null,null,null,null,null,null,null,null,null,null,null,null,null,null,null,null,null,null,null,null,null,"YYYY/MM/DD（半角）\n※「申込済み」を選択の場合ご記入ください。\n※「NTT東日本会社/NTT西日本会社のアクセスタイプが既に開通済み」または「アクセスタイプがNTT東日本会社/NTT西日本会社へ申込済みであり、工事日予定日が確定」であることが、本サービスの提供条件となることをご了承ください。",null,null,null,null,null,null,null,null,null,null,null,null,null,null,null,null,null,null,null,null,null,null,"開通予定日\n【条件付き書式】",{"$f":"OR($N$37=\"\",$N$37<>\"開通済み\")","v":true}]
["ご利用場所",null,null,null,null,null,null,null,null,null,null,null,null,null,null,null,null,null,null,null,null,null,null,null,null,null,null,null,null,null,null,null,null,null,null,null,null,null,null,null,null,null,null,null,null,null,null,null,null,null,null,null,null,null,null,null,"ご利用場所全項目\n【条件付き書式】",{"$f":"OR($N$32=\"\",$BC$8<>TRUE)","v":true}]
["■ご注意\n※ご利用場所の住所を必ずご記入ください。"]
["ご利用場所",null,null,null,null,null,"コピーリスト（必須）",null,null,null,null,null,null,null,null,null,null,null,null,null,null,null,null,null,null,null,null,null,null,null,null,null,null,"選択してください"]
[null,null,null,null,null,null,"郵便番号（必須）",null,null,null,null,null,null,null,null,null,null,null,null,null,null,null,null,null,null,null,null,null,null,null,null,null,null,"半角数字７桁",null,null,null,null,null,null,null,null,null,null,null,null,null,null,null,null,null,null,null,null,null,null,"ご利用場所\n郵便番号～ビル名\n【条件付き書式】",{"$f":"AND($BF$39=TRUE,OR($N$41=\"\",$N$41=\"次のとおり\"))","v":true}]
[null,null,null,null,null,null,"ご住所（必須）",null,null,null,null,null,null,null,null,null,null,null,null,null,null,null,null,null,null,null,null,null,null,null,null,null,null,null,null,null,null,null,null,null,null,"全角46桁以内\n※住所を都道府県からご記入ください。\n※NTT東日本／西日本会社の提供するフレッツサービスを設置される住所を記入ください。"]
[null,null,null,null,null,null,"番地（必須）",null,null,null,null,null,null,null,null,null,null,null,null,null,null,null,null,null,null,null,null,null,null,null,null,null,null,"全角20桁以内"]
[null,null,null,null,null,null,"ビル名等",null,null,null,null,null,null,null,null,null,null,null,null,null,null,null,null,null,null,null,null,null,null,null,null,null,null,"全角20桁以内\n※フロア数まで記入ください。"]
[null,null,null,null,null,null,"事業所名",null,null,null,null,null,null,null,null,null,null,null,null,null,null,null,null,null,null,null,null,null,null,null,null,null,null,"全角20桁以内\n※ご利用場所の会社名（ご名義）ｊとご契約者名に相違がある場合は、必ずご記入ください。",null,null,null,null,null,null,null,null,null,null,null,null,null,null,null,null,null,null,null,null,null,null,"ご利用場所事業所名\n【条件付き書式】",{"$f":"OR($N$32=\"\",$BC$8<>TRUE)","v":true}]
["ご利用場所に関する\nご連絡先",null,null,null,null,null,"コピーリスト（必須）",null,null,null,null,null,null,null,null,null,null,null,null,null,null,null,null,null,null,null,null,null,null,null,null,null,null,"選択してください",null,null,null,null,null,null,null,null,null,null,null,null,null,null,null,null,null,null,null,null,null,null,"ご利用場所連絡先\n【条件付き書式】",{"$f":"OR($N$32=\"\",$BC$8<>TRUE)","v":true}]
[null,null,null,null,null,null,"お名前（必須）",null,null,null,null,null,null,null,null,null,null,null,null,null,null,null,null,null,null,null,null,null,null,null,null,null,null,"全角10桁以内",null,null,null,null,null,null,null,null,null,null,null,null,null,null,null,null,null,null,null,null,null,null,"ご利用場所連絡先\nお名前\n【条件付き書式】",{"$f":"AND($BF$39=TRUE,OR($N$47=\"\",$N$47=\"次のとおり\"))","v":true}]
[null,null,null,null,null,null,"電話番号（必須）",null,null,null,null,null,null,null,null,null,null,null,null,null,null,null,null,null,null,null,null,null,null,null,null,null,null,"ハイフンを含む半角10桁～13桁\n（数字、ハイフンのみ）",null,null,null,null,null,null,null,null,null,null,null,null,null,null,null,null,null,null,null,null,null,null,"ご利用場所連絡先\n電話番号\n【条件付き書式】",{"$f":"AND($BF$39=TRUE,OR($N$47=\"\",$N$47=\"次のとおり\"))","v":true}]
["技術担当者　※故障等緊急時や認証ID／PW再通知申請等重要なお知らせ時の連絡先として使用します。"]
["技術担当者",null,null,null,null,null,"コピーリスト（必須）",null,null,null,null,null,null,null,null,null,null,null,null,null,null,null,null,null,null,null,null,null,null,null,null,null,null,"選択してください",null,null,null,null,null,null,null,null,null,null,null,null,null,null,null,null,null,null,null,null,"技術担当者コピーリスト\n【リスト】",{"$f":"IF($N$41=\"次のとおり\",\"list_nwTechnology_1\",\"list_nwTechnology_2\")","v":"list_nwTechnology_2"}]
[null,null,null,null,null,null,"担当者名（必須）",null,null,null,null,null,null,null,null,null,null,null,null,null,null,null,null,null,null,null,null,null,null,null,null,null,null,"全角10桁以内",null,null,null,null,null,null,null,null,null,null,null,null,null,null,null,null,null,null,null,null,null,null,"技術担当者\n担当者名・電話番号\n【条件付き書式】",{"$f":"OR($N$51=\"\",$N$51=\"次のとおり\")","v":true}]
[null,null,null,null,null,null,"電話番号（必須）",null,null,null,null,null,null,null,null,null,null,null,null,null,null,null,null,null,null,null,null,null,null,null,null,null,null,"ハイフンを含む半角10桁～13桁\n（数字、ハイフンのみ）"]
[null,null,null,null,null,null,"FAX番号",null,null,null,null,null,null,null,null,null,null,null,null,null,null,null,null,null,null,null,null,null,null,null,null,null,null,"ハイフンを含む半角10桁～13桁\n（数字、ハイフンのみ）",null,null,null,null,null,null,null,null,null,null,null,null,null,null,null,null,null,null,null,null,null,null,"技術担当者\nFAX番号\n【条件付き書式】",{"$f":"IF($N$51=\"お申込みに関する連絡先と同じ\",FALSE,TRUE)","v":true}]
[null,null,null,null,null,null,"e-mail（必須）",null,null,null,null,null,null,null,null,null,null,null,null,null,null,null,null,null,null,null,null,null,null,null,null,null,null,"半角英数64桁以内\n※ご担当者が複数の場合は、カンマで区切りで記入ください。\n※メールアドレスをお持でない方は「a@a」をご記入ください。",null,null,null,null,null,null,null,null,null,null,null,null,null,null,null,null,null,null,null,null,null,null,"技術担当者\nFAX番号\n【条件付き書式】",{"$f":"IF($N$51=\"お申込みに関する連絡先と同じ\",FALSE,TRUE)","v":true}]
["保守受付言語"]
["保守受付言語（必須）",null,null,null,null,null,null,null,null,null,null,null,null,null,null,null,null,null,null,null,null,null,null,null,null,null,null,null,null,null,null,null,null,"選択してください"]
["お支払に関する情報"]
["■ご注意\n【口座振替及びクレジットカードでのお支払】をご希望のお客さま\n　※「請求書によるお支払」をご選択いただき、ビリングカスタマセンタ（TEL：0120-047128）までご連絡下さい。\n　　弊社より口座振替によるお支払をご希望のお客さまは「口座振替依頼書」、クレジットカードでのお支払をご希望のお客さまは「クレジットカード払い申込書」を送付いたします。\n　※初回のご請求は「請求書によるお支払」になる場合があります。\n\n【既契約のお支払情報と同一にする】をご希望のお客さま\n　※引継ぎ元の請求がファイナンス社の場合は対象外となります。\n　※OCN利用料をフレッツ光利用料と合わせて、お支払いただいているお客さまはご利用いただけません。\n　※現在、ご利用中のサービスのお支払情報と同一にします。（但し、ご契約者名義が同一の場合のみ）\n　※複数の請求を一枚にまとめている場合もお支払情報を同一にします。\n　※お支払情報に関するお知らせの送付先は既契約と同一になります。"]
["支払方法（必須）",null,null,null,null,null,null,null,null,null,null,null,null,null,null,null,null,null,null,null,null,null,null,null,null,null,null,null,null,null,null,null,null,"選択してください"]
["既契約のお客さま番号\n（既契約のお支払情報と同一にする）（必須）",null,null,null,null,null,null,null,null,null,null,null,null,null,null,null,null,null,null,null,null,null,null,null,null,null,null,null,null,null,null,null,null,"ＨまたはＮからはじまる10桁のお客さま番号をご記入ください",null,null,null,null,null,null,null,null,null,null,null,null,null,null,null,null,null,null,null,null,null,null,"既契約のお客さま番号\n【条件付き書式】",{"$f":"OR($N$60=\"\",$N$60=\"既契約のお支払情報と同一にする\")","v":true}]
["毎月の利用料の\n請求先",null,null,null,null,null,"コピーリスト（必須）",null,null,null,null,null,null,null,null,null,null,null,null,null,null,null,null,null,null,null,null,null,null,null,null,null,null,"選択してください",null,null,null,null,null,null,null,null,null,null,null,null,null,null,null,null,null,null,null,null,"請先コピーリスト\n【リスト】",{"$f":"IF(N41=\"次のとおり\",\"list_billMailingCopylist_1\",\"list_billMailingCopylist_2\")","v":"list_billMailingCopylist_2"},"請先コピーリスト\n【条件付き書式】",{"$f":"OR($N$60=\"\",$N$60=\"請求書によるお支払\")","v":true}]
[null,null,null,null,null,null,"郵便番号（必須）",null,null,null,null,null,null,null,null,null,null,null,null,null,null,null,null,null,null,null,null,null,null,null,null,null,null,"半角数字７桁",null,null,null,null,null,null,null,null,null,null,null,null,null,null,null,null,null,null,null,null,null,null,"請先\n郵便番号～ビル名等\n【条件付き書式】",{"$f":"AND(BF62=TRUE,OR($N$62=\"\",N62=\"次のとおり\"))","v":true}]
[null,null,null,null,null,null,"ご住所（必須）",null,null,null,null,null,null,null,null,null,null,null,null,null,null,null,null,null,null,null,null,null,null,null,null,null,null,null,null,null,null,null,null,null,null,"全角46桁以内\n※住所を都道府県からご記入ください。"]
[null,null,null,null,null,null,"番地（必須）",null,null,null,null,null,null,null,null,null,null,null,null,null,null,null,null,null,null,null,null,null,null,null,null,null,null,"全角20桁以内"]
[null,null,null,null,null,null,"ビル名等",null,null,null,null,null,null,null,null,null,null,null,null,null,null,null,null,null,null,null,null,null,null,null,null,null,null,"全角20桁以内"]
[null,null,null,null,null,null,"宛先　フリガナ\n（必須）",null,null,null,null,null,null,null,null,null,null,null,null,null,null,null,null,null,null,null,null,null,null,null,null,null,null,"全角30桁以内",null,null,null,null,null,null,null,null,null,null,null,null,null,null,null,null,null,null,null,null,null,null,"請先\n宛先～連絡先電番\n【条件付き書式】",{"$f":"OR($N$60=\"\",$N$60=\"請求書によるお支払\")","v":true}]
[null,null,null,null,null,null,"宛先　お名前\n(会社名＋部課名)\n（必須）",null,null,null,null,null,null,null,null,null,null,null,null,null,null,null,null,null,null,null,null,null,null,null,null,null,null,"全角20桁以内\n※宛先に記入いただいた内容は、そのまま請求書に印刷されます。会社名・部署名・氏名等をご記入ください。　"]
[null,null,null,null,null,null,"連絡先",null,"お名前",null,null,null,null,null,null,null,null,null,null,null,null,null,null,null,null,null,null,null,null,null,null,null,null,"全角10桁以内\n※請求書の宛先には表示されません。"]
[null,null,null,null,null,null,null,null,"電話番号",null,null,null,null,null,null,null,null,null,null,null,null,null,null,null,null,null,null,null,null,null,null,null,null,"ハイフンを含む半角10桁～13桁\n（数字、ハイフンのみ）"]
["ご利用案内に関する情報　　※接続に必要となる情報をOCNより送付します。"]
["■ご注意\n※「ご利用内容のご案内」メールは、「customer@info.ocn.ne.jp」から届きますので、メール受信設定いただきますようお願いいたします。\n※「ご利用内容のご案内」は、メールにて送信されるURLから専用サイトへアクセスし、確認パスワードを入力することで、閲覧/保存出来ます。\n※メールにてお届けできない場合の送付先に関しても必ずご記入下さい。\n※送信したメールが届かなかった場合は、郵送にてお送りいたしますが、開通日に間に合わない場合がありますので、ご注意願います。"]
["ご利用案内の送信先",null,null,null,null,null,"送信先\nメールアドレス\n（必須）",null,null,null,null,null,null,null,null,null,null,null,null,null,null,null,null,null,null,null,null,null,null,null,null,null,null,"半角英数64桁まで\n※メールアドレスをお持ちでない場合は、記入不要です(郵送にて送付いたします)\n※複数のメールアドレスを指定することはできません。複数アドレスを指定する場合は、メーリングリストにてお申込ください。\n※携帯電話のメールアドレスは指定できません。"]
[null,null,null,null,null,null,"ご利用案内確認\nパスワード\n（必須）",null,null,null,null,null,null,null,null,null,null,null,null,null,null,null,null,null,null,null,null,null,null,null,null,null,null,"半角英数8桁～10桁まで\n※英大文字、英小文字、数字からそれぞれ1文字以上使用してください。\n※「ご利用内容のご案内」専用サイトにログインする際に本パスワードが必要となりますので、ご案内のメールが届くまで必ず保管願います。\n※メールアドレスをお持ちでない場合は、記入不要です(郵送にて送付いたします)"]
["ご利用案内の送付先\n\n\n\n\n※メールにてお届けできない場合、郵送させていただきます。",null,null,null,null,null,"コピーリスト（必須）",null,null,null,null,null,null,null,null,null,null,null,null,null,null,null,null,null,null,null,null,null,null,null,null,null,null,"選択してください\n※「支払方法」にて\"既契約のお支払情報と同一にする\"を選択の場合、\"毎月の利用料の請求先と同じ\"以外を選択してください。",null,null,null,null,null,null,null,null,null,null,null,null,null,null,null,null,null,null,null,null,"開案送付先コピーリスト\n【リスト】",{"$f":"IF(AND($N$41=\"次のとおり\",$N$62=\"次のとおり\"),\"list_kaianMailingAdd_1\",IF(AND($N$41<>\"次のとおり\",$N$62=\"次のとおり\"),\"list_kaianMailingAdd_2\",IF(AND($N$41=\"次のとおり\",$N$62<>\"次のとおり\"),\"list_kaianMailingAdd_3\",IF(AND($N$41<>\"次のとおり\",$N$62<>\"次のとおり\"),\"list_kaianMailingAdd_4\",\"null\"))))","v":"list_kaianMailingAdd_4"}]
[null,null,null,null,null,null,"郵便番号（必須）",null,null,null,null,null,null,null,null,null,null,null,null,null,null,null,null,null,null,null,null,null,null,null,null,null,null,"半角数字７桁",null,null,null,null,null,null,null,null,null,null,null,null,null,null,null,null,null,null,null,null,null,null,"開案送付先\n郵便番号～ビル名等\n【条件付き書式】",{"$f":"OR($N$75=\"\",$N$75=\"次のとおり\")","v":true}]
[null,null,null,null,null,null,"ご住所（必須）",null,null,null,null,null,null,null,null,null,null,null,null,null,null,null,null,null,null,null,null,null,null,null,null,null,null,null,null,null,null,null,null,null,null,"全角46桁以内\n※住所を都道府県からご記入ください。"]
[null,null,null,null,null,null,"番地（必須）",null,null,null,null,null,null,null,null,null,null,null,null,null,null,null,null,null,null,null,null,null,null,null,null,null,null,"全角20桁以内"]
[null,null,null,null,null,null,"ビル名等",null,null,null,null,null,null,null,null,null,null,null,null,null,null,null,null,null,null,null,null,null,null,null,null,null,null,"全角20桁以内"]
[null,null,null,null,null,null,"宛先",null,"会社名／お名前",null,null,null,null,null,null,null,null,null,null,null,null,null,null,null,null,null,null,null,null,null,null,null,null,"全角20桁以内"]
[null,null,null,null,null,null,null,null,"部課名",null,null,null,null,null,null,null,null,null,null,null,null,null,null,null,null,null,null,null,null,null,null,null,null,"全角20桁以内\n※ご利用案内の送付先に部課名が必要な場合にご記入ください。"]
[null,null,null,null,null,null,null,null,"担当者",null,null,null,null,null,null,null,null,null,null,null,null,null,null,null,null,null,null,null,null,null,null,null,null,"全角10桁以内\n※ご利用案内の送付先の担当者名は必ずご記入ください。"]
["お客様ご要望記事欄"]
["選択してください",null,null,null,null,null,null,null,null,null,null,null,null,"記事欄に下記文言の記載があることでSOセンタの確認作業が発生し、納期に影響が発生する場合がありますので、ご注意ください。\n「OCN開通希望日とフレッツ開通予定日が同日であることは、お客様了承済です。」「ご利用場所電話番号はダミー番号です。」「開通案内の最短での発送をお願いします。」\nその他要望事項等、記載が必要な時のみプルダウンで「お客様ご要望記事欄を記入する」を選択の上ご記入ください。",null,null,null,null,null,null,null,null,null,null,null,null,null,null,null,null,null,null,null,null,null,null,null,null,null,null,null,null,null,null,null,null,null,null,null,null,null,null,null,null,null,null,"記事欄入力可否\n※FALSEの時非活性",{"$f":"A84=\"お客様ご要望記事欄を記入する\"","v":false}]
["お客様ご要望記事欄"]
[]
["弊社記入欄"]
["料金に関する留意事項（必須）",null,null,null,null,null,null,null,null,null,null,null,null,"無",null,null,null,null,null,null,null,null,null,null,null,null,null,null,null,null,null,null,null,"選択してください"]
["NPCRM承認ID枝番",null,null,null,null,null,null,null,null,null,null,null,null,null,null,null,null,null,null,null,null,null,null,null,null,null,null,null,null,null,null,null,null,"半角15桁以内"]
["サブプロジェクトID",null,null,null,null,null,null,null,null,null,null,null,null,null,null,null,null,null,null,null,null,null,null,null,null,null,null,null,null,null,null,null,null,"半角15桁以内"]
["回線種別（必須）",null,null,null,null,null,null,null,null,null,null,null,null,"法人",null,null,null,null,null,null,null,null,null,null,null,null,null,null,null,null,null,null,null,"選択してください\n※回線種別は「お客様区分」です。該当の区分を選択してください。"]
["大口情報",null,null,null,null,null,null,null,null,null,null,null,null,null,null,null,null,null,null,null,null,null,null,null,null,null,null,null,null,null,null,null,null,"ハイフン付きで半角14桁"]
["個別案件管理番号",null,null,null,null,null,null,null,null,null,null,null,null,null,null,null,null,null,null,null,null,null,null,null,null,null,null,null,null,null,null,null,null,"半角英数字10桁"]
[]
["お客様対応部門"]
["お客様対応部門",null,null,null,null,null,"販売チャネルコード\n（必須）",null,null,null,null,null,null,"77J00000",null,null,null,null,null,null,null,null,null,null,null,null,null,null,null,null,null,null,null,"半角英数字８桁"]
[null,null,null,null,null,null,"販売チャネル名\n（必須）",null,null,null,null,null,null,"㈱エヌディエステレコム",null,null,null,null,null,null,null,null,null,null,null,null,null,null,null,null,null,null,null,"全角16桁以内"]
[null,null,null,null,null,null,"担当者（必須）",null,null,null,null,null,null,"上田",null,null,null,null,null,null,null,null,null,null,null,null,null,null,null,null,null,null,null,"全角10桁以内"]
[null,null,null,null,null,null,"社員コード ",null,null,null,null,null,null,null,null,null,null,null,null,null,null,null,null,null,null,null,null,null,null,null,null,null,null,"半角英数字8桁以内"]
[null,null,null,null,null,null,"電話番号（必須）",null,null,null,null,null,null,"0120-881-444",null,null,null,null,null,null,null,null,null,null,null,null,null,null,null,null,null,null,null,"ハイフンを含む半角10桁～13桁\n（数字、ハイフンのみ）"]
[null,null,null,null,null,null,"ＦＡＸ番号 ",null,null,null,null,null,null,"0120-788-622",null,null,null,null,null,null,null,null,null,null,null,null,null,null,null,null,null,null,null,"ハイフンを含む半角10桁～13桁\n（数字、ハイフンのみ）"]
[null,null,null,null,null,null,"ｅ-mail（必須）",null,null,null,null,null,null,"order@kotei-ip.com",null,null,null,null,null,null,null,null,null,null,null,null,null,null,null,null,null,null,null,"半角英数64桁以内"]
["お申込受付部門"]
["お申込受付部門",null,null,null,null,null,"担当者（必須）",null,null,null,null,null,null,"上田",null,null,null,null,null,null,null,null,null,null,null,null,null,null,null,null,null,null,null,"全角10桁以内"]
[null,null,null,null,null,null,"組織名（必須）",null,null,null,null,null,null,"㈱エヌディエステレコム",null,null,null,null,null,null,null,null,null,null,null,null,null,null,null,null,null,null,null,"全角20桁以内"]
[null,null,null,null,null,null,"電話番号（必須）",null,null,null,null,null,null,"0120-881-444",null,null,null,null,null,null,null,null,null,null,null,null,null,null,null,null,null,null,null,"ハイフンを含む半角10桁～13桁\n（数字、ハイフンのみ）"]
[null,null,null,null,null,null,"ＦＡＸ番号 ",null,null,null,null,null,null,"0120-788-622",null,null,null,null,null,null,null,null,null,null,null,null,null,null,null,null,null,null,null,"ハイフンを含む半角10桁～13桁\n（数字、ハイフンのみ）"]
[null,null,null,null,null,null,"ｅ-mail（必須）",null,null,null,null,null,null,"order@kotei-ip.com",null,null,null,null,null,null,null,null,null,null,null,null,null,null,null,null,null,null,null,"半角英数64桁以内"]

{"sheet":"付加サービス情報","index":1,"n_rows":13,"n_cols":60,"rows_kept":13,"cut":false,"hidden":false,"merged":[[12,0,12,12],[12,13,12,32],[12,33,12,51],[7,33,7,51],[7,13,7,32],[10,0,10,12],[10,33,10,51],[10,13,10,22],[10,23,10,26],[10,27,10,32],[2,0,2,51],[5,0,5,51],[11,0,11,12],[11,33,11,51],[7,0,7,12],[8,0,8,12],[8,13,8,32],[8,33,8,51],[9,0,9,12],[9,13,9,32],[9,33,9,51],[11,13,11,22],[11,23,11,26],[11,27,11,32],[6,0,6,51],[4,0,4,51]]}
[null,null,null,null,null,null,null,null,null,null,null,null,null,null,null,null,null,null,null,null,null,null,null,null,null,null,null,null,null,null,null,null,null,null,null,null,null,null,null,null,null,null,null,null,null,null,null,null,null,null,null,{"$f":"基本情報!$AZ$1","v":"Ver.1.00A(2020/3/19)"},null,null,"アクセスタイプ：(F)","アクセスタイプ：\n光コラボ","回線が光ネクスト","フレッツ・ISDN","forVPN/動的IP\nかつ光コラボ","IPoEメニュー"]
[null,null,null,null,null,null,null,null,null,null,null,null,null,null,null,null,null,null,null,null,null,null,null,null,null,null,null,null,null,null,null,null,null,null,null,null,null,null,null,null,null,null,null,null,null,null,null,null,null,null,null,null,null,null,{"$f":"基本情報!$BC$8","v":false},{"$f":"基本情報!$BD$8","v":false},{"$f":"基本情報!$BE$8","v":false},{"$f":"基本情報!$BF$8","v":false},{"$f":"基本情報!$BG$8","v":false},{"$f":"基本情報!$BH$8","v":false}]
[{"$f":"基本情報!A5","v":"第６種オープンコンピュータ通信網サービス　for VPNライト　契約申込書（新規）"}]
[]
["付加サービス情報"]
["■ご注意\n※「ビジネスパックＶＰＮ」・「一元故障受付サービス」については、必ず営業担当者経由でお申込ください。\n※OCNビジネスパックＶＰＮは、Ｂフレッツビジネスタイプ「ひかり電話ビジネスタイプ対応、及び同ベーシックタイプ「ひかり電話ビジネスタイプ」対応とあわせてのご利用はできません。"]
[]
["OCN セキュリティゲートウェイ\n（ISDN除く）（必須）",null,null,null,null,null,null,null,null,null,null,null,null,null,null,null,null,null,null,null,null,null,null,null,null,null,null,null,null,null,null,null,null,"選択してください。\n※「OCNセキュリティGW申込書」をあわせてご提出ください。\n※ルータタイプを利用する場合、OCNビジネスパックVPNとの併用はできません。\n※ブリッジタイプを利用する場合、OCNビジネスパックVPNとの併用が可能です。",null,null,null,null,null,null,null,null,null,null,null,null,null,null,null,null,null,null,null,null,"SGW\n【リスト】",{"$f":"IF($N$9=\"利用する\",\"list_SGW_2\",\"list_SGW_1\")","v":"list_SGW_1"},"SGW\n【条件付き書式】",{"$f":"IF($BF$2=TRUE,FALSE,TRUE)","v":true}]
["OCNビジネスパックVPN\n（必須）",null,null,null,null,null,null,null,null,null,null,null,null,null,null,null,null,null,null,null,null,null,null,null,null,null,null,null,null,null,null,null,null,"※「OCNビジネスパックVPN申込書」をあわせてご提出ください。\n※OCN　セキュリティゲートウェイ（ルータタイプ）との併用はできません。\n※サービスの利用形態をご確認の上、お申込みください。\n　 サービスの詳細に関しましては、下記URLをご参照ください。\n 　 http://www.ntt.com/business/services/network/internet-connect/ocn-business/vpn/biz.html",null,null,null,null,null,null,null,null,null,null,null,null,null,null,null,null,null,null,null,null,"ビジパク\n【リスト】",{"$f":"IF(OR($BF$2=TRUE,$BH$2=TRUE,$N$8=\"利用する(ルータタイプ)\"),\"list_option_2\",\"list_option_1\")","v":"list_option_1"}]
["一元故障受付サービス\n（必須）",null,null,null,null,null,null,null,null,null,null,null,null,null,null,null,null,null,null,null,null,null,null,null,null,null,null,null,null,null,null,null,null,"※ご利用の場合は、「一元故障受付用申込書」を合わせてお申込ください。",null,null,null,null,null,null,null,null,null,null,null,null,null,null,null,null,null,null,null,null,null,null,"一元故障受付\nサービス\n【条件付き書式】",{"$f":"IF(OR($BC$2=TRUE,$BD$2=TRUE),FALSE,TRUE)","v":true}]
["ウイルスバスタービジネスセキュリティ\n（必須）",null,null,null,null,null,null,null,null,null,null,null,null,null,null,null,null,null,null,null,null,null,null,null,null,null,null,"　ライセンス",null,null,null,null,null,"選択してください。\n※「利用する」を選択した場合は、ご利用ライセンス数をご記入下さい。\n※5ライセンス以上、最大99999ライセンスまでお申込いただけます。\n※ウイルスバスタービジネスセキュリティに関する登録完了通知メールは、ネットワーク技術担当者様のメールアドレス宛に送付致します。",null,null,null,null,null,null,null,null,null,null,null,null,null,null,null,null,null,null,null,null,null,null,"VBBSライセンス数\n【条件付き書式】",{"$f":"OR($N$11=\"\",$N$11=\"利用する\")","v":true}]
["OCN IWSaaSサービス\n（必須）",null,null,null,null,null,null,null,null,null,null,null,null,null,null,null,null,null,null,null,null,null,null,null,null,null,null,"　ライセンス",null,null,null,null,null,"選択してください。\n※「利用する」を選択した場合は、ご利用ライセンス数をご記入下さい。\n※1ライセンス以上、最大99999ライセンスまでお申込いただけます。\n※OCN IWSaaSサービスに関する登録完了通知メールは、ネットワーク技術担当者様のメールアドレス宛に送付致します。",null,null,null,null,null,null,null,null,null,null,null,null,null,null,null,null,null,null,null,null,null,null,"IWSaaS\n【条件付き書式】",{"$f":"OR($N$12=\"\",$N$12=\"利用する\")","v":true}]
["Arcstar IP Voice\n（必須）",null,null,null,null,null,null,null,null,null,null,null,null,null,null,null,null,null,null,null,null,null,null,null,null,null,null,null,null,null,null,null,null,"選択してください"]

{"sheet":"list","index":2,"n_rows":87,"n_cols":5,"rows_kept":87,"cut":false,"hidden":true,"merged":[]}
["■リスト値"]
[null,"項目名","条件等","リスト値","名前定義"]
[null,"IP種別","-","forVPNライト","list_Ipaddress"]
[null,"アクセスタイプ","forVPNライト","フレッツ 光ネクスト","list_AL_3"]
[null,null,null,"フレッツ 光ライト"]
[null,null,null,"Bフレッツ"]
[null,null,null,"フレッツ・ISDN"]
[null,null,null,"フレッツ・ADSL"]
[null,"契約タイプ","forVPNライト＋フレッツ・ADSL","1.5Mタイプ","liteadsl"]
[null,null,null,"8Mタイプ"]
[null,null,null,"モア(12M)"]
[null,null,null,"モアⅡ(24Mタイプ)/モア24(24タイプ)"]
[null,null,null,"モアⅡ(40M)/モア40(40Mタイプ)"]
[null,null,null,"モアⅢ(47M)・モアスペシャル(47M)"]
[null,null,null,"モアⅢ(47M)・ビジネスタイプ(NTT東日本)"]
[null,null,null,"モアⅡ(24M)・ビジネスタイプ(NTT東日本)"]
[null,null,"forVPNライト＋Bフレッツ","ニューファミリータイプ(NTT東日本)","liteB"]
[null,null,null,"ベーシックタイプ(NTT東日本/NTT西日本)"]
[null,null,null,"ビル・マンションタイプ(NTT東日本/NTT西日本)"]
[null,null,"forVPNライト＋フレッツ 光ネクスト","ファミリータイプ(NTT東日本/NTT西日本)","litehn"]
[null,null,null,"ファミリー・ハイスピードタイプ(NTT東日本/NTT西日本)"]
[null,null,null,"マンションタイプ(NTT東日本/NTT西日本)"]
[null,null,null,"マンション・ハイスピードタイプ(NTT東日本/NTT西日本)"]
[null,null,null,"ファミリー・スーパーハイスピードタイプ隼(NTT西日本)"]
[null,null,null,"マンション・スーパーハイスピードタイプ隼(NTT西日本)"]
[null,null,null,"ギガファミリー・スマートタイプ(NTT東日本)"]
[null,null,null,"ギガマンション・スマートタイプ(NTT東日本)"]
[null,null,null,"ファミリー・ギガラインタイプ(NTT東日本)"]
[null,null,null,"マンション・ギガラインタイプ(NTT東日本)"]
[null,null,"forVPNライト＋フレッツ 光ライト","ファミリータイプ","litehl"]
[null,null,null,"マンションタイプ"]
[null,"申込み状況",null,"開通済み","list_FletsApply"]
[null,null,null,"申込済み"]
[null,"ご利用場所",null,"ご契約者住所と同じ","list_locationAddress"]
[null,null,null,"次のとおり"]
[null,"ご利用場所に関する連絡先",null,"お申込みに関する連絡先に同じ","list_locationLiaison"]
[null,null,null,"次のとおり"]
[null,"技術担当者情報",null,"お申込みに関する連絡先と同じ","list_nwTechnology_1"]
[null,null,null,"ご利用場所に関する連絡先と同じ"]
[null,null,null,"次のとおり"]
[null,null,null,"お申込みに関する連絡先と同じ","list_nwTechnology_2"]
[null,null,null,"次のとおり"]
[null,"支払方法",null,"請求書によるお支払","list_paymentOption"]
[null,null,null,"既契約のお支払情報と同一にする"]
[null,"毎月の利用料の請求先",null,"ご契約者住所と同じ","list_billMailingCopylist_1"]
[null,null,null,"ご利用場所住所と同じ"]
[null,null,null,"次のとおり"]
[null,null,null,"ご契約者住所と同じ","list_billMailingCopylist_2"]
[null,null,null,"次のとおり"]
[null,"ご利用案内の送付先",null,"ご契約者住所と同じ","list_kaianMailingAdd_1"]
[null,null,null,"ご利用場所住所と同じ"]
[null,null,null,"毎月の利用料の請求先と同じ"]
[null,null,null,"次のとおり"]
[null,null,null,"ご契約者住所と同じ","list_kaianMailingAdd_2"]
[null,null,null,"毎月の利用料の請求先と同じ"]
[null,null,null,"次のとおり"]
[null,null,null,"ご契約者住所と同じ","list_kaianMailingAdd_3"]
[null,null,null,"ご利用場所住所と同じ"]
[null,null,null,"次のとおり"]
[null,null,null,"ご契約者住所と同じ","list_kaianMailingAdd_4"]
[null,null,null,"次のとおり"]
[null,"回線種別",null,"個人","list_customerDivision"]
[null,null,null,"法人"]
[null,null,null,"外国公館等"]
[null,null,null,"在日米軍"]
[null,null,null,"国・地方自治体"]
[null,null,null,"業務用"]
[null,"料金に関する留意事項",null,"相対申込有","list_individuallyChargeType"]
[null,null,null,"型紙申込有"]
[null,null,null,"無"]
[null,"お客様ご要望記事欄",null,"選択してください","list_demandSectionFlag"]
[null,null,null,"お客様ご要望記事欄を記入する"]
[null,"希望有無",null,"希望する","list_Wish"]
[null,null,null,"希望しない"]
[null,"利用有無",null,"利用する","list_option_1"]
[null,null,null,"利用しない"]
[null,null,null,"利用しない","list_option_2"]
[null,"セキュリティGW",null,"利用する(ルータタイプ)","list_SGW_1"]
[null,null,null,"利用する(ブリッジタイプ)"]
[null,null,null,"利用しない"]
[null,null,null,"利用する(ブリッジタイプ)","list_SGW_2"]
[null,null,null,"利用しない"]
[null,"保守受付言語",null,"日本語","list_maintenanceWindow"]
[null,null,null,"英語"]
[null,"有/無",null,"有","list_Presence"]
[null,null,null,"無"]
[null,"null","-",null,"null"]

{"sheet":"変換","index":3,"n_rows":77,"n_cols":11,"rows_kept":77,"cut":false,"hidden":true,"merged":[]}
[null,"▼契約タイプ制御用",null,null,null,"▼管理者連絡窓口情報、技術連絡担当者情報（英文：部署/所属）",null,null,null,"▼管理者連絡窓口情報、技術連絡担当者情報（英文：肩書）"]
[null,"IP種別＋アクセスタイプ","変換用",null,null,"部署和文","部署英文",null,null,"肩書和文","肩書英文"]
[null,"forVPN/動的IPフレッツ 光ネクスト(IPoE 標準プラン)","forVPNhnIPoE",null,null,"総務部","General affairs department",null,null,"代表取締役会長","Chairperson & C.E.O"]
[null,"forVPN/動的IPフレッツ 光ネクスト(IPoE ワイドプラン)","forVPNhnIPoE",null,null,"企画部","Planning department",null,null,"会長","Chairperson"]
[null,"forVPN/動的IPフレッツ 光ネクスト","forVPNhn",null,null,"営業部","The sales department",null,null,"代表取締役社長","C.E.O"]
[null,"forVPN/動的IPフレッツ 光ライト","forVPNhl",null,null,"開発部","The development department",null,null,"社長","President"]
[null,"forVPN/動的IPフレッツ・光プレミアム(NTT西日本)","forVPNhp",null,null,"総務課","General affairs department",null,null,"代表取締役","C.E.O"]
[null,"forVPN/動的IPBフレッツ","forVPNB",null,null,"営業課","Business department",null,null,"専務取締役","Executive Vice President"]
[null,"forVPN/動的IPフレッツ・ISDN","null",null,null,"企画課","Plan department",null,null,"常務取締役","Senior Vice President"]
[null,"forVPN/動的IPフレッツ・ADSL","forVPNadsl",null,null,"開発課","Development department",null,null,"監査役","Auditor"]
[null,"forVPN/動的IPOCN 光サービス(F)「光ネクスト」","forVPNhnF",null,null,"その他",null,null,null,"事業部長","Division Director"]
[null,"forVPN/動的IPOCN 光サービス(F)「Bフレッツ」","forVPNbF",null,null,null,null,null,null,"副事業部長","Deputy Director"]
[null,"forVPN/動的IPOCN ADSLサービス(F)","forVPNadslF",null,null,null,null,null,null,"本部長","General Manager"]
[null,"forVPN/動的IPOCN光【光一括提供型】(IPoE 標準プラン)","forVPNhnc",null,null,null,null,null,null,"副本部長","Deputy Director"]
[null,"forVPN/動的IPOCN光【光一括提供型】(IPoE ワイドプラン)","forVPNhnc",null,null,null,null,null,null,"推進部長","Executive Manager"]
[null,"forVPN/動的IPOCN光【光一括提供型】","forVPNhnc",null,null,null,null,null,null,"統括部長","Executive Manager"]
[null,"IP1フレッツ 光ネクスト(IPoE 標準プラン)","IP1hnIPoE",null,null,null,null,null,null,"部長","Director"]
[null,"IP1フレッツ 光ネクスト(IPoE ワイドプラン)","IP1hnIPoE",null,null,null,null,null,null,"副部長","Deputy Director"]
[null,"IP1フレッツ 光ネクスト","IP1hn",null,null,null,null,null,null,"担当部長","Director"]
[null,"IP1フレッツ 光ライト","IP1hl",null,null,null,null,null,null,"営業部長","Sales Director"]
[null,"IP1フレッツ・光プレミアム(NTT西日本)","IP1hp",null,null,null,null,null,null,"技術部長","Technical Director"]
[null,"IP1Bフレッツ","IP1B",null,null,null,null,null,null,"所長","Executive Manager"]
[null,"IP1フレッツ・ISDN","null",null,null,null,null,null,null,"次長","Deputy Director"]
[null,"IP1フレッツ・ADSL","IP1adsl",null,null,null,null,null,null,"課長","Manager"]
[null,"IP1OCN 光サービス(F)「光ネクスト」","IP1hnF",null,null,null,null,null,null,"課長代理","Assistant Manager"]
[null,"IP1OCN 光サービス(F)「Bフレッツ」","IP1bF",null,null,null,null,null,null,"担当課長","Associate Manager"]
[null,"IP1OCN ADSLサービス(F)","IP1adslF",null,null,null,null,null,null,"係長","Chief"]
[null,"IP1OCN光【光一括提供型】(IPoE 標準プラン)","IP1hnc",null,null,null,null,null,null,"主査","Chief"]
[null,"IP1OCN光【光一括提供型】(IPoE ワイドプラン)","IP1hnc",null,null,null,null,null,null,"主任","Chief"]
[null,"IP1OCN光【光一括提供型】","IP1hnc",null,null,null,null,null,null,"室長","Executive Manager"]
[null,"IP8フレッツ 光ネクスト(IPoE 標準プラン)","IP8hnIPoE",null,null,null,null,null,null,"技師","Engineer"]
[null,"IP8フレッツ 光ネクスト(IPoE ワイドプラン)","IP8hnIPoE",null,null,null,null,null,null,"その他"]
[null,"IP8フレッツ 光ネクスト","IP8hn"]
[null,"IP8フレッツ 光ライト","IP8hl"]
[null,"IP8フレッツ・光プレミアム(NTT西日本)","IP8hp"]
[null,"IP8Bフレッツ","IP8B"]
[null,"IP8フレッツ・ISDN","null"]
[null,"IP8フレッツ・ADSL","IP8adsl"]
[null,"IP8OCN 光サービス(F)「光ネクスト」","IP8hnF"]
[null,"IP8OCN 光サービス(F)「Bフレッツ」","IP8bF"]
[null,"IP8OCN ADSLサービス(F)","IP8adslF"]
[null,"IP8OCN光【光一括提供型】(IPoE 標準プラン)","IP8hnc"]
[null,"IP8OCN光【光一括提供型】(IPoE ワイドプラン)","IP8hnc"]
[null,"IP8OCN光【光一括提供型】","IP8hnc"]
[null,"IP16フレッツ 光ネクスト(IPoE 標準プラン)","IP16hnIPoE"]
[null,"IP16フレッツ 光ネクスト(IPoE ワイドプラン)","IP16hnIPoE"]
[null,"IP16フレッツ 光ネクスト","IP16hn"]
[null,"IP16フレッツ 光ライト","IP16hl"]
[null,"IP16フレッツ・光プレミアム(NTT西日本)","IP16hp"]
[null,"IP16Bフレッツ","IP16B"]
[null,"IP16フレッツ・ISDN","null"]
[null,"IP16フレッツ・ADSL","IP16adsl"]
[null,"IP16OCN 光サービス(F)「光ネクスト」","IP16hnF"]
[null,"IP16OCN 光サービス(F)「Bフレッツ」","IP16bF"]
[null,"IP16OCN ADSLサービス(F)","IP16adslF"]
[null,"IP16OCN光【光一括提供型】(IPoE 標準プラン)","IP16hnc"]
[null,"IP16OCN光【光一括提供型】(IPoE ワイドプラン)","IP16hnc"]
[null,"IP16OCN光【光一括提供型】","IP16hnc"]
[null,"動的1to1フレッツ 光ネクスト(IPoE 標準プラン)","d1to1hnIPoE"]
[null,"動的1to1フレッツ 光ネクスト(IPoE ワイドプラン)","d1to1hnIPoE"]
[null,"動的1to1OCN光【光一括提供型】(IPoE 標準プラン)","d1to1hnc"]
[null,"動的1to1OCN光【光一括提供型】(IPoE ワイドプラン)","d1to1hnc"]
[null,"IP32フレッツ 光ネクスト","IP3264_hn"]
[null,"IP32Bフレッツ","IP3264_B"]
[null,"IP32OCN 光サービス(F)「光ネクスト」","IP3264_hnF"]
[null,"IP32OCN 光サービス(F)「Bフレッツ」","IP3264_bF"]
[null,"IP64フレッツ 光ネクスト","IP3264_hn"]
[null,"IP64Bフレッツ","IP3264_B"]
[null,"IP64OCN 光サービス(F)「光ネクスト」","IP3264_hnF"]
[null,"IP64OCN 光サービス(F)「Bフレッツ」","IP3264_bF"]
[null,"forVPNライトフレッツ 光ネクスト","litehn"]
[null,"forVPNライトフレッツ 光ライト","litehl"]
[null,"forVPNライトフレッツ・光プレミアム(NTT西日本)","litehp"]
[null,"forVPNライトBフレッツ","liteB"]
[null,"forVPNライトフレッツ・ISDN","null"]
[null,"forVPNライトフレッツ・ADSL","liteadsl"]
[null,"forVPNライトOCN光【光一括提供型】","litehnc"]

{"sheet":"OCNメニュー","index":4,"n_rows":408,"n_cols":7,"rows_kept":408,"cut":false,"hidden":true,"merged":[]}
["■OCN提供メニュー/OCN認証ドメイン"]
[null,"IP種別","アクセスタイプ","契約タイプ","IP種別＋アクセスタイプ＋契約タイプの合体名（検索値）","OCN提供メニュー","OCN認証ドメイン"]
[null,"forVPN/動的IP","フレッツ・ADSL","1.5Mタイプ",{"$f":"B3&C3&D3","v":"forVPN/動的IPフレッツ・ADSL1.5Mタイプ"},"OCN ADSLアクセス 「フレッツ」プラン forVPN 1M/1.5M/8M/12M/24M/40M/47Mタイプ","xxx@dfa.ocn.ne.jp"]
[null,"forVPN/動的IP","フレッツ・ADSL","8Mタイプ",{"$f":"B4&C4&D4","v":"forVPN/動的IPフレッツ・ADSL8Mタイプ"},"OCN ADSLアクセス 「フレッツ」プラン forVPN 1M/1.5M/8M/12M/24M/40M/47Mタイプ","xxx@dfa.ocn.ne.jp"]
[null,"forVPN/動的IP","フレッツ・ADSL","モア(12M)","forVPN/動的IPフレッツ・ADSLモア(12M)","OCN ADSLアクセス 「フレッツ」プラン forVPN 1M/1.5M/8M/12M/24M/40M/47Mタイプ","xxx@dfa.ocn.ne.jp"]
[null,"forVPN/動的IP","フレッツ・ADSL","モアⅡ(24Mタイプ)/モア24(24タイプ)","forVPN/動的IPフレッツ・ADSLモアⅡ(24Mタイプ)/モア24(24タイプ)","OCN ADSLアクセス 「フレッツ」プラン forVPN 1M/1.5M/8M/12M/24M/40M/47Mタイプ","xxx@dfa.ocn.ne.jp"]
[null,"forVPN/動的IP","フレッツ・ADSL","モアⅡ(40M)/モア40(40Mタイプ)","forVPN/動的IPフレッツ・ADSLモアⅡ(40M)/モア40(40Mタイプ)","OCN ADSLアクセス 「フレッツ」プラン forVPN 1M/1.5M/8M/12M/24M/40M/47Mタイプ","xxx@dfa.ocn.ne.jp"]
[null,"forVPN/動的IP","フレッツ・ADSL","モアⅢ(47M)・モアスペシャル(47M)","forVPN/動的IPフレッツ・ADSLモアⅢ(47M)・モアスペシャル(47M)","OCN ADSLアクセス 「フレッツ」プラン forVPN 1M/1.5M/8M/12M/24M/40M/47Mタイプ","xxx@dfa.ocn.ne.jp"]
[null,"forVPN/動的IP","フレッツ・ADSL","モアⅢ(47M)・ビジネスタイプ(NTT東日本)","forVPN/動的IPフレッツ・ADSLモアⅢ(47M)・ビジネスタイプ(NTT東日本)","OCN ADSLアクセス 「フレッツ」プラン forVPN ビジネスタイプ","xxx@dfab.ocn.ne.jp"]
[null,"forVPN/動的IP","フレッツ・ADSL","モアⅡ(24M)・ビジネスタイプ(NTT東日本)","forVPN/動的IPフレッツ・ADSLモアⅡ(24M)・ビジネスタイプ(NTT東日本)","OCN ADSLアクセス 「フレッツ」プラン forVPN ビジネスタイプ","xxx@dfab.ocn.ne.jp"]
[null,"forVPN/動的IP","フレッツ・ISDN",null,"forVPN/動的IPフレッツ・ISDN","OCN ISDNアクセス forVPN 「フレッツ」プラン","xxx@dfi.ocn.ne.jp"]
[null,"forVPN/動的IP","Bフレッツ","ニューファミリータイプ(NTT東日本)","forVPN/動的IPBフレッツニューファミリータイプ(NTT東日本)","OCN 光「フレッツ」 forVPN ファミリータイプ","xxx@dbnf.ocn.ne.jp"]
[null,"forVPN/動的IP","Bフレッツ","ベーシックタイプ(NTT東日本/NTT西日本)","forVPN/動的IPBフレッツベーシックタイプ(NTT東日本/NTT西日本)","OCN 光「フレッツ」 forVPN ベーシックタイプ","xxx@dbfb.ocn.ne.jp"]
[null,"forVPN/動的IP","Bフレッツ","ビル・マンションタイプ(NTT東日本/NTT西日本)","forVPN/動的IPBフレッツビル・マンションタイプ(NTT東日本/NTT西日本)","OCN 光「フレッツ」 forVPN マンションタイプ","xxx@dbfm.ocn.ne.jp"]
[null,"forVPN/動的IP","フレッツ・光プレミアム(NTT西日本)","ファミリータイプ","forVPN/動的IPフレッツ・光プレミアム(NTT西日本)ファミリータイプ","OCN 光「フレッツ」 forVPN ファミリータイプ","xxx@dbnf.ocn.ne.jp"]
[null,"forVPN/動的IP","フレッツ・光プレミアム(NTT西日本)","マンションタイプ","forVPN/動的IPフレッツ・光プレミアム(NTT西日本)マンションタイプ","OCN 光「フレッツ」 forVPN マンションタイプ","xxx@dbfm.ocn.ne.jp"]
[null,"forVPN/動的IP","フレッツ 光ネクスト","ファミリータイプ(NTT東日本/NTT西日本)","forVPN/動的IPフレッツ 光ネクストファミリータイプ(NTT東日本/NTT西日本)","OCN 光「フレッツ」 forVPN ファミリータイプ","xxx@bizd.ocn.ne.jp"]
[null,"forVPN/動的IP","フレッツ 光ネクスト","ファミリー・ハイスピードタイプ(NTT東日本/NTT西日本)","forVPN/動的IPフレッツ 光ネクストファミリー・ハイスピードタイプ(NTT東日本/NTT西日本)","OCN 光「フレッツ」 forVPN ファミリータイプ","xxx@bizd.ocn.ne.jp"]
[null,"forVPN/動的IP","フレッツ 光ネクスト","マンションタイプ(NTT東日本/NTT西日本)","forVPN/動的IPフレッツ 光ネクストマンションタイプ(NTT東日本/NTT西日本)","OCN 光「フレッツ」 forVPN マンションタイプ","xxx@bizd.ocn.ne.jp"]
[null,"forVPN/動的IP","フレッツ 光ネクスト","マンション・ハイスピードタイプ(NTT東日本/NTT西日本)","forVPN/動的IPフレッツ 光ネクストマンション・ハイスピードタイプ(NTT東日本/NTT西日本)","OCN 光「フレッツ」 forVPN マンションタイプ","xxx@bizd.ocn.ne.jp"]
[null,"forVPN/動的IP","フレッツ 光ネクスト","ファミリー・スーパーハイスピードタイプ隼(NTT西日本)","forVPN/動的IPフレッツ 光ネクストファミリー・スーパーハイスピードタイプ隼(NTT西日本)","OCN 光「フレッツ」 forVPN ファミリータイプ","xxx@bizd.ocn.ne.jp"]
[null,"forVPN/動的IP","フレッツ 光ネクスト","マンション・スーパーハイスピードタイプ隼(NTT西日本)","forVPN/動的IPフレッツ 光ネクストマンション・スーパーハイスピードタイプ隼(NTT西日本)","OCN 光「フレッツ」 forVPN マンションタイプ","xxx@bizd.ocn.ne.jp"]
[null,"forVPN/動的IP","フレッツ 光ネクスト","プライオ1(NTT東日本)","forVPN/動的IPフレッツ 光ネクストプライオ1(NTT東日本)","OCN 光「フレッツ」 forVPN プライオ1","xxx@bizd.ocn.ne.jp"]
[null,"forVPN/動的IP","フレッツ 光ネクスト","ギガファミリー・スマートタイプ(NTT東日本)","forVPN/動的IPフレッツ 光ネクストギガファミリー・スマートタイプ(NTT東日本)","OCN 光「フレッツ」 forVPN ギガファミリー","xxx@bizd.ocn.ne.jp"]
[null,"forVPN/動的IP","フレッツ 光ネクスト","ギガマンション・スマートタイプ(NTT東日本)","forVPN/動的IPフレッツ 光ネクストギガマンション・スマートタイプ(NTT東日本)","OCN 光「フレッツ」 forVPN ギガファミリー","xxx@bizd.ocn.ne.jp"]
[null,"forVPN/動的IP","フレッツ 光ネクスト","ファミリー・ギガラインタイプ(NTT東日本)","forVPN/動的IPフレッツ 光ネクストファミリー・ギガラインタイプ(NTT東日本)","OCN 光「フレッツ」 forVPN ギガファミリー","xxx@bizd.ocn.ne.jp"]
[null,"forVPN/動的IP","フレッツ 光ネクスト","マンション・ギガラインタイプ(NTT東日本)","forVPN/動的IPフレッツ 光ネクストマンション・ギガラインタイプ(NTT東日本)","OCN 光「フレッツ」 forVPN ギガファミリー","xxx@bizd.ocn.ne.jp"]
[null,"forVPN/動的IP","フレッツ 光ライト","ファミリータイプ","forVPN/動的IPフレッツ 光ライトファミリータイプ","OCN 光「フレッツ」 forVPN ファミリータイプ","xxx@bizd.ocn.ne.jp"]
[null,"forVPN/動的IP","フレッツ 光ライト","マンションタイプ","forVPN/動的IPフレッツ 光ライトマンションタイプ","OCN 光「フレッツ」 forVPN マンションタイプ","xxx@bizd.ocn.ne.jp"]
[null,"forVPN/動的IP","OCN光【光一括提供型】","ファミリー 100M(NTT東日本)","forVPN/動的IPOCN光【光一括提供型】ファミリー 100M(NTT東日本)","OCN 光 ファミリー 100M forVPN","xxx@bizd.ocn.ne.jp"]
[null,"forVPN/動的IP","OCN光【光一括提供型】","マンション 100M(NTT東日本)","forVPN/動的IPOCN光【光一括提供型】マンション 100M(NTT東日本)","OCN 光 マンション 100M forVPN","xxx@bizd.ocn.ne.jp"]
[null,"forVPN/動的IP","OCN光【光一括提供型】","ファミリー 100M(NTT西日本)","forVPN/動的IPOCN光【光一括提供型】ファミリー 100M(NTT西日本)","OCN 光 ファミリー 100M forVPN","xxx@bizd.ocn.ne.jp"]
[null,"forVPN/動的IP","OCN光【光一括提供型】","マンション 100M(NTT西日本)","forVPN/動的IPOCN光【光一括提供型】マンション 100M(NTT西日本)","OCN 光 マンション 100M forVPN","xxx@bizd.ocn.ne.jp"]
[null,"forVPN/動的IP","OCN光【光一括提供型】","ファミリー 200M(NTT東日本)","forVPN/動的IPOCN光【光一括提供型】ファミリー 200M(NTT東日本)","OCN 光 ファミリー 200M forVPN","xxx@bizd.ocn.ne.jp"]
[null,"forVPN/動的IP","OCN光【光一括提供型】","マンション 200M(NTT東日本)","forVPN/動的IPOCN光【光一括提供型】マンション 200M(NTT東日本)","OCN 光 マンション 200M forVPN","xxx@bizd.ocn.ne.jp"]
[null,"forVPN/動的IP","OCN光【光一括提供型】","ファミリー 200M(NTT西日本)","forVPN/動的IPOCN光【光一括提供型】ファミリー 200M(NTT西日本)","OCN 光 ファミリー 200M forVPN","xxx@bizd.ocn.ne.jp"]
[null,"forVPN/動的IP","OCN光【光一括提供型】","マンション 200M(NTT西日本)","forVPN/動的IPOCN光【光一括提供型】マンション 200M(NTT西日本)","OCN 光 マンション 200M forVPN","xxx@bizd.ocn.ne.jp"]
[null,"forVPN/動的IP","OCN光【光一括提供型】","ファミリー 1G(NTT東日本)","forVPN/動的IPOCN光【光一括提供型】ファミリー 1G(NTT東日本)","OCN 光 ファミリー 1G forVPN","xxx@bizd.ocn.ne.jp"]
[null,"forVPN/動的IP","OCN光【光一括提供型】","マンション 1G(NTT東日本)","forVPN/動的IPOCN光【光一括提供型】マンション 1G(NTT東日本)","OCN 光 マンション 1G forVPN","xxx@bizd.ocn.ne.jp"]
[null,"forVPN/動的IP","OCN光【光一括提供型】","ファミリー 1G(NTT西日本)","forVPN/動的IPOCN光【光一括提供型】ファミリー 1G(NTT西日本)","OCN 光 ファミリー 1G forVPN","xxx@bizd.ocn.ne.jp"]
[null,"forVPN/動的IP","OCN光【光一括提供型】","マンション 1G(NTT西日本)","forVPN/動的IPOCN光【光一括提供型】マンション 1G(NTT西日本)","OCN 光 マンション 1G forVPN","xxx@bizd.ocn.ne.jp"]
[null,"forVPN/動的IP","フレッツ 光ネクスト(IPoE 標準プラン)","NTT東日本","forVPN/動的IPフレッツ 光ネクスト(IPoE 標準プラン)NTT東日本","OCN 光「フレッツ」 IPoE 標準プラン 動的IP","-"]
[null,"forVPN/動的IP","フレッツ 光ネクスト(IPoE 標準プラン)","NTT西日本","forVPN/動的IPフレッツ 光ネクスト(IPoE 標準プラン)NTT西日本","OCN 光「フレッツ」 IPoE 標準プラン 動的IP","-"]
[null,"forVPN/動的IP","フレッツ 光ネクスト(IPoE ワイドプラン)","NTT東日本","forVPN/動的IPフレッツ 光ネクスト(IPoE ワイドプラン)NTT東日本","OCN 光「フレッツ」 IPoE ワイドプラン 動的IP","-"]
[null,"forVPN/動的IP","フレッツ 光ネクスト(IPoE ワイドプラン)","NTT西日本","forVPN/動的IPフレッツ 光ネクスト(IPoE ワイドプラン)NTT西日本","OCN 光「フレッツ」 IPoE ワイドプラン 動的IP","-"]
[null,"forVPN/動的IP","OCN光【光一括提供型】(IPoE 標準プラン)","ファミリー 100M(NTT東日本)","forVPN/動的IPOCN光【光一括提供型】(IPoE 標準プラン)ファミリー 100M(NTT東日本)","OCN 光 IPoE 標準プラン ファミリー 100M 動的IP","-"]
[null,"forVPN/動的IP","OCN光【光一括提供型】(IPoE 標準プラン)","マンション 100M(NTT東日本)","forVPN/動的IPOCN光【光一括提供型】(IPoE 標準プラン)マンション 100M(NTT東日本)","OCN 光 IPoE 標準プラン マンション 100M 動的IP","-"]
[null,"forVPN/動的IP","OCN光【光一括提供型】(IPoE 標準プラン)","ファミリー 100M(NTT西日本)","forVPN/動的IPOCN光【光一括提供型】(IPoE 標準プラン)ファミリー 100M(NTT西日本)","OCN 光 IPoE 標準プラン ファミリー 100M 動的IP","-"]
[null,"forVPN/動的IP","OCN光【光一括提供型】(IPoE 標準プラン)","マンション 100M(NTT西日本)","forVPN/動的IPOCN光【光一括提供型】(IPoE 標準プラン)マンション 100M(NTT西日本)","OCN 光 IPoE 標準プラン マンション 100M 動的IP","-"]
[null,"forVPN/動的IP","OCN光【光一括提供型】(IPoE 標準プラン)","ファミリー 200M(NTT東日本)","forVPN/動的IPOCN光【光一括提供型】(IPoE 標準プラン)ファミリー 200M(NTT東日本)","OCN 光 IPoE 標準プラン ファミリー 200M 動的IP","-"]
[null,"forVPN/動的IP","OCN光【光一括提供型】(IPoE 標準プラン)","マンション 200M(NTT東日本)","forVPN/動的IPOCN光【光一括提供型】(IPoE 標準プラン)マンション 200M(NTT東日本)","OCN 光 IPoE 標準プラン マンション 200M 動的IP","-"]
[null,"forVPN/動的IP","OCN光【光一括提供型】(IPoE 標準プラン)","ファミリー 200M(NTT西日本)","forVPN/動的IPOCN光【光一括提供型】(IPoE 標準プラン)ファミリー 200M(NTT西日本)","OCN 光 IPoE 標準プラン ファミリー 200M 動的IP","-"]
[null,"forVPN/動的IP","OCN光【光一括提供型】(IPoE 標準プラン)","マンション 200M(NTT西日本)","forVPN/動的IPOCN光【光一括提供型】(IPoE 標準プラン)マンション 200M(NTT西日本)","OCN 光 IPoE 標準プラン マンション 200M 動的IP","-"]
[null,"forVPN/動的IP","OCN光【光一括提供型】(IPoE 標準プラン)","ファミリー 1G(NTT東日本)","forVPN/動的IPOCN光【光一括提供型】(IPoE 標準プラン)ファミリー 1G(NTT東日本)","OCN 光 IPoE 標準プラン ファミリー 1G 動的IP","-"]
[null,"forVPN/動的IP","OCN光【光一括提供型】(IPoE 標準プラン)","マンション 1G(NTT東日本)","forVPN/動的IPOCN光【光一括提供型】(IPoE 標準プラン)マンション 1G(NTT東日本)","OCN 光 IPoE 標準プラン マンション 1G 動的IP","-"]
[null,"forVPN/動的IP","OCN光【光一括提供型】(IPoE 標準プラン)","ファミリー 1G(NTT西日本)","forVPN/動的IPOCN光【光一括提供型】(IPoE 標準プラン)ファミリー 1G(NTT西日本)","OCN 光 IPoE 標準プラン ファミリー 1G 動的IP","-"]
[null,"forVPN/動的IP","OCN光【光一括提供型】(IPoE 標準プラン)","マンション 1G(NTT西日本)","forVPN/動的IPOCN光【光一括提供型】(IPoE 標準プラン)マンション 1G(NTT西日本)","OCN 光 IPoE 標準プラン マンション 1G 動的IP","-"]
[null,"forVPN/動的IP","OCN光【光一括提供型】(IPoE ワイドプラン)","ファミリー 100M(NTT東日本)","forVPN/動的IPOCN光【光一括提供型】(IPoE ワイドプラン)ファミリー 100M(NTT東日本)","OCN 光 IPoE ワイドプラン ファミリー 100M 動的IP","-"]
[null,"forVPN/動的IP","OCN光【光一括提供型】(IPoE ワイドプラン)","マンション 100M(NTT東日本)","forVPN/動的IPOCN光【光一括提供型】(IPoE ワイドプラン)マンション 100M(NTT東日本)","OCN 光 IPoE ワイドプラン マンション 100M 動的IP","-"]
[null,"forVPN/動的IP","OCN光【光一括提供型】(IPoE ワイドプラン)","ファミリー 100M(NTT西日本)","forVPN/動的IPOCN光【光一括提供型】(IPoE ワイドプラン)ファミリー 100M(NTT西日本)","OCN 光 IPoE ワイドプラン ファミリー 100M 動的IP","-"]
[null,"forVPN/動的IP","OCN光【光一括提供型】(IPoE ワイドプラン)","マンション 100M(NTT西日本)","forVPN/動的IPOCN光【光一括提供型】(IPoE ワイドプラン)マンション 100M(NTT西日本)","OCN 光 IPoE ワイドプラン マンション 100M 動的IP","-"]
[null,"forVPN/動的IP","OCN光【光一括提供型】(IPoE ワイドプラン)","ファミリー 200M(NTT東日本)","forVPN/動的IPOCN光【光一括提供型】(IPoE ワイドプラン)ファミリー 200M(NTT東日本)","OCN 光 IPoE ワイドプラン ファミリー 200M 動的IP","-"]
[null,"forVPN/動的IP","OCN光【光一括提供型】(IPoE ワイドプラン)","マンション 200M(NTT東日本)","forVPN/動的IPOCN光【光一括提供型】(IPoE ワイドプラン)マンション 200M(NTT東日本)","OCN 光 IPoE ワイドプラン マンション 200M 動的IP","-"]
[null,"forVPN/動的IP","OCN光【光一括提供型】(IPoE ワイドプラン)","ファミリー 200M(NTT西日本)","forVPN/動的IPOCN光【光一括提供型】(IPoE ワイドプラン)ファミリー 200M(NTT西日本)","OCN 光 IPoE ワイドプラン ファミリー 200M 動的IP","-"]
[null,"forVPN/動的IP","OCN光【光一括提供型】(IPoE ワイドプラン)","マンション 200M(NTT西日本)","forVPN/動的IPOCN光【光一括提供型】(IPoE ワイドプラン)マンション 200M(NTT西日本)","OCN 光 IPoE ワイドプラン マンション 200M 動的IP","-"]
[null,"forVPN/動的IP","OCN光【光一括提供型】(IPoE ワイドプラン)","ファミリー 1G(NTT東日本)","forVPN/動的IPOCN光【光一括提供型】(IPoE ワイドプラン)ファミリー 1G(NTT東日本)","OCN 光 IPoE ワイドプラン ファミリー 1G 動的IP","-"]
[null,"forVPN/動的IP","OCN光【光一括提供型】(IPoE ワイドプラン)","マンション 1G(NTT東日本)","forVPN/動的IPOCN光【光一括提供型】(IPoE ワイドプラン)マンション 1G(NTT東日本)","OCN 光 IPoE ワイドプラン マンション 1G 動的IP","-"]
[null,"forVPN/動的IP","OCN光【光一括提供型】(IPoE ワイドプラン)","ファミリー 1G(NTT西日本)",{"$f":"B68&C68&D68","v":"forVPN/動的IPOCN光【光一括提供型】(IPoE ワイドプラン)ファミリー 1G(NTT西日本)"},"OCN 光 IPoE ワイドプラン ファミリー 1G 動的IP","-"]
[null,"forVPN/動的IP","OCN光【光一括提供型】(IPoE ワイドプラン)","マンション 1G(NTT西日本)","forVPN/動的IPOCN光【光一括提供型】(IPoE ワイドプラン)マンション 1G(NTT西日本)","OCN 光 IPoE ワイドプラン マンション 1G 動的IP","-"]
[null,"forVPN/動的IP","OCN ADSLサービス(F)","モアⅢ(47M)(NTT東日本)","forVPN/動的IPOCN ADSLサービス(F)モアⅢ(47M)(NTT東日本)","OCN ADSLサービス forVPN(F)47M 東タイプ","xxx@dfa.ocn.ne.jp"]
[null,"forVPN/動的IP","OCN ADSLサービス(F)","モアスペシャル(47M)(NTT西日本)","forVPN/動的IPOCN ADSLサービス(F)モアスペシャル(47M)(NTT西日本)","OCN ADSLサービス forVPN(F)47M 西タイプ","xxx@dfa.ocn.ne.jp"]
[null,"forVPN/動的IP","OCN ADSLサービス(F)","モアⅡ(40M)(NTT東日本)","forVPN/動的IPOCN ADSLサービス(F)モアⅡ(40M)(NTT東日本)","OCN ADSLサービス forVPN(F)40M 東タイプ","xxx@dfa.ocn.ne.jp"]
[null,"forVPN/動的IP","OCN ADSLサービス(F)","モア40(40M)(NTT西日本)","forVPN/動的IPOCN ADSLサービス(F)モア40(40M)(NTT西日本)","OCN ADSLサービス forVPN(F)40M 西タイプ","xxx@dfa.ocn.ne.jp"]
[null,"forVPN/動的IP","OCN ADSLサービス(F)","モア24(24M)(NTT西日本)","forVPN/動的IPOCN ADSLサービス(F)モア24(24M)(NTT西日本)","OCN ADSLサービス forVPN(F)24M 西タイプ","xxx@dfa.ocn.ne.jp"]
[null,"forVPN/動的IP","OCN ADSLサービス(F)","モア(12M)(NTT東日本)","forVPN/動的IPOCN ADSLサービス(F)モア(12M)(NTT東日本)","OCN ADSLサービス forVPN(F)12M 東タイプ","xxx@dfa.ocn.ne.jp"]
[null,"forVPN/動的IP","OCN ADSLサービス(F)","モア(12M)(NTT西日本)","forVPN/動的IPOCN ADSLサービス(F)モア(12M)(NTT西日本)","OCN ADSLサービス forVPN(F)12M 西タイプ","xxx@dfa.ocn.ne.jp"]
[null,"forVPN/動的IP","OCN ADSLサービス(F)","8M(NTT東日本)","forVPN/動的IPOCN ADSLサービス(F)8M(NTT東日本)","OCN ADSLサービス forVPN(F)8M 東タイプ","xxx@dfa.ocn.ne.jp"]
[null,"forVPN/動的IP","OCN ADSLサービス(F)","8M(NTT西日本)","forVPN/動的IPOCN ADSLサービス(F)8M(NTT西日本)","OCN ADSLサービス forVPN(F)8M 西タイプ","xxx@dfa.ocn.ne.jp"]
[null,"forVPN/動的IP","OCN ADSLサービス(F)","1.5M(NTT東日本)","forVPN/動的IPOCN ADSLサービス(F)1.5M(NTT東日本)","OCN ADSLサービス forVPN(F)1.5M 東タイプ","xxx@dfa.ocn.ne.jp"]
[null,"forVPN/動的IP","OCN ADSLサービス(F)","1.5M(NTT西日本)","forVPN/動的IPOCN ADSLサービス(F)1.5M(NTT西日本)","OCN ADSLサービス forVPN(F)1.5M 西タイプ","xxx@dfa.ocn.ne.jp"]
[null,"forVPN/動的IP","OCN ADSLサービス(F)","モアⅢ(47M)・ビジネスタイプ(NTT東日本)","forVPN/動的IPOCN ADSLサービス(F)モアⅢ(47M)・ビジネスタイプ(NTT東日本)","OCN ADSLサービス forVPN(F)ビジネス47M 東タイプ","xxx@dfab.ocn.ne.jp"]
[null,"forVPN/動的IP","OCN ADSLサービス(F)","モアⅡ(40M)・ビジネスタイプ(NTT東日本)","forVPN/動的IPOCN ADSLサービス(F)モアⅡ(40M)・ビジネスタイプ(NTT東日本)","OCN ADSLサービス forVPN(F)ビジネス40M 東タイプ","xxx@dfab.ocn.ne.jp"]
[null,"forVPN/動的IP","OCN 光サービス(F)「光ネクスト」","ファミリータイプ(NTT東日本)","forVPN/動的IPOCN 光サービス(F)「光ネクスト」ファミリータイプ(NTT東日本)","OCN 光サービス forVPN(F) 「光ネクスト」ファミリータイプ 東タイプ","xxx@bizd.ocn.ne.jp"]
[null,"forVPN/動的IP","OCN 光サービス(F)「光ネクスト」","ファミリータイプ(NTT西日本)","forVPN/動的IPOCN 光サービス(F)「光ネクスト」ファミリータイプ(NTT西日本)","OCN 光サービス forVPN(F) 「光ネクスト」ファミリータイプ 西タイプ","xxx@bizd.ocn.ne.jp"]
[null,"forVPN/動的IP","OCN 光サービス(F)「光ネクスト」","ファミリー・ハイスピードタイプ(NTT東日本)","forVPN/動的IPOCN 光サービス(F)「光ネクスト」ファミリー・ハイスピードタイプ(NTT東日本)","OCN 光サービス forVPN(F) 「光ネクスト」ファミリー･ハイスピードタイプ","xxx@bizd.ocn.ne.jp"]
[null,"forVPN/動的IP","OCN 光サービス(F)「光ネクスト」","ファミリー・ハイスピードタイプ(NTT西日本)","forVPN/動的IPOCN 光サービス(F)「光ネクスト」ファミリー・ハイスピードタイプ(NTT西日本)","OCN 光サービス forVPN(F) 「光ネクスト」ファミリー･ハイスピードタイプ 西タイプ","xxx@bizd.ocn.ne.jp"]
[null,"forVPN/動的IP","OCN 光サービス(F)「光ネクスト」","ファミリー・スーパーハイスピードタイプ隼(NTT西日本)","forVPN/動的IPOCN 光サービス(F)「光ネクスト」ファミリー・スーパーハイスピードタイプ隼(NTT西日本)","OCN 光サービス forVPN(F) 「光ネクスト」ファミリー･スーパーハイスピード隼 西タイプ","xxx@bizd.ocn.ne.jp"]
[null,"forVPN/動的IP","OCN 光サービス(F)「光ネクスト」","プライオ1(NTT東日本)","forVPN/動的IPOCN 光サービス(F)「光ネクスト」プライオ1(NTT東日本)","OCN 光サービス forVPN(F) 「光ネクスト」プライオ1 東タイプ","xxx@bizd.ocn.ne.jp"]
[null,"forVPN/動的IP","OCN 光サービス(F)「光ネクスト」","ギガファミリー・スマートタイプ(NTT東日本)","forVPN/動的IPOCN 光サービス(F)「光ネクスト」ギガファミリー・スマートタイプ(NTT東日本)","OCN 光サービス forVPN(F) 「光ネクスト」ギガファミリー 東タイプ","xxx@bizd.ocn.ne.jp"]
[null,"forVPN/動的IP","OCN 光サービス(F)「光ネクスト」","ファミリー・ギガラインタイプ(NTT東日本)","forVPN/動的IPOCN 光サービス(F)「光ネクスト」ファミリー・ギガラインタイプ(NTT東日本)","OCN 光サービス forVPN(F) 「光ネクスト」ファミリー･ギガライン 東タイプ","xxx@bizd.ocn.ne.jp"]
[null,"動的1to1","フレッツ 光ネクスト(IPoE 標準プラン)","NTT東日本","動的1to1フレッツ 光ネクスト(IPoE 標準プラン)NTT東日本","OCN 光「フレッツ」 IPoE 標準プラン 動的1to1","-"]
[null,"動的1to1","フレッツ 光ネクスト(IPoE 標準プラン)","NTT西日本","動的1to1フレッツ 光ネクスト(IPoE 標準プラン)NTT西日本","OCN 光「フレッツ」 IPoE 標準プラン 動的1to1","-"]
[null,"動的1to1","フレッツ 光ネクスト(IPoE ワイドプラン)","NTT東日本","動的1to1フレッツ 光ネクスト(IPoE ワイドプラン)NTT東日本","OCN 光「フレッツ」 IPoE ワイドプラン 動的1to1","-"]
[null,"動的1to1","フレッツ 光ネクスト(IPoE ワイドプラン)","NTT西日本","動的1to1フレッツ 光ネクスト(IPoE ワイドプラン)NTT西日本","OCN 光「フレッツ」 IPoE ワイドプラン 動的1to1","-"]
[null,"動的1to1","OCN光【光一括提供型】(IPoE 標準プラン)","ファミリー 100M(NTT東日本)","動的1to1OCN光【光一括提供型】(IPoE 標準プラン)ファミリー 100M(NTT東日本)","OCN 光 IPoE 標準プラン ファミリー 100M 動的1to1","-"]
[null,"動的1to1","OCN光【光一括提供型】(IPoE 標準プラン)","マンション 100M(NTT東日本)","動的1to1OCN光【光一括提供型】(IPoE 標準プラン)マンション 100M(NTT東日本)","OCN 光 IPoE 標準プラン マンション 100M 動的1to1","-"]
[null,"動的1to1","OCN光【光一括提供型】(IPoE 標準プラン)","ファミリー 100M(NTT西日本)","動的1to1OCN光【光一括提供型】(IPoE 標準プラン)ファミリー 100M(NTT西日本)","OCN 光 IPoE 標準プラン ファミリー 100M 動的1to1","-"]
[null,"動的1to1","OCN光【光一括提供型】(IPoE 標準プラン)","マンション 100M(NTT西日本)","動的1to1OCN光【光一括提供型】(IPoE 標準プラン)マンション 100M(NTT西日本)","OCN 光 IPoE 標準プラン マンション 100M 動的1to1","-"]
[null,"動的1to1","OCN光【光一括提供型】(IPoE 標準プラン)","ファミリー 200M(NTT東日本)","動的1to1OCN光【光一括提供型】(IPoE 標準プラン)ファミリー 200M(NTT東日本)","OCN 光 IPoE 標準プラン ファミリー 200M 動的1to1","-"]
[null,"動的1to1","OCN光【光一括提供型】(IPoE 標準プラン)","マンション 200M(NTT東日本)","動的1to1OCN光【光一括提供型】(IPoE 標準プラン)マンション 200M(NTT東日本)","OCN 光 IPoE 標準プラン マンション 200M 動的1to1","-"]
[null,"動的1to1","OCN光【光一括提供型】(IPoE 標準プラン)","ファミリー 200M(NTT西日本)","動的1to1OCN光【光一括提供型】(IPoE 標準プラン)ファミリー 200M(NTT西日本)","OCN 光 IPoE 標準プラン ファミリー 200M 動的1to1","-"]
[null,"動的1to1","OCN光【光一括提供型】(IPoE 標準プラン)","マンション 200M(NTT西日本)","動的1to1OCN光【光一括提供型】(IPoE 標準プラン)マンション 200M(NTT西日本)","OCN 光 IPoE 標準プラン マンション 200M 動的1to1","-"]
[null,"動的1to1","OCN光【光一括提供型】(IPoE 標準プラン)","ファミリー 1G(NTT東日本)","動的1to1OCN光【光一括提供型】(IPoE 標準プラン)ファミリー 1G(NTT東日本)","OCN 光 IPoE 標準プラン ファミリー 1G 動的1to1","-"]
[null,"動的1to1","OCN光【光一括提供型】(IPoE 標準プラン)","マンション 1G(NTT東日本)","動的1to1OCN光【光一括提供型】(IPoE 標準プラン)マンション 1G(NTT東日本)","OCN 光 IPoE 標準プラン マンション 1G 動的1to1","-"]
[null,"動的1to1","OCN光【光一括提供型】(IPoE 標準プラン)","ファミリー 1G(NTT西日本)","動的1to1OCN光【光一括提供型】(IPoE 標準プラン)ファミリー 1G(NTT西日本)","OCN 光 IPoE 標準プラン ファミリー 1G 動的1to1","-"]
[null,"動的1to1","OCN光【光一括提供型】(IPoE 標準プラン)","マンション 1G(NTT西日本)","動的1to1OCN光【光一括提供型】(IPoE 標準プラン)マンション 1G(NTT西日本)","OCN 光 IPoE 標準プラン マンション 1G 動的1to1","-"]
[null,"動的1to1","OCN光【光一括提供型】(IPoE ワイドプラン)","ファミリー 100M(NTT東日本)","動的1to1OCN光【光一括提供型】(IPoE ワイドプラン)ファミリー 100M(NTT東日本)","OCN 光 IPoE ワイドプラン ファミリー 100M 動的1to1","-"]
[null,"動的1to1","OCN光【光一括提供型】(IPoE ワイドプラン)","マンション 100M(NTT東日本)","動的1to1OCN光【光一括提供型】(IPoE ワイドプラン)マンション 100M(NTT東日本)","OCN 光 IPoE ワイドプラン マンション 100M 動的1to1","-"]
[null,"動的1to1","OCN光【光一括提供型】(IPoE ワイドプラン)","ファミリー 100M(NTT西日本)","動的1to1OCN光【光一括提供型】(IPoE ワイドプラン)ファミリー 100M(NTT西日本)","OCN 光 IPoE ワイドプラン ファミリー 100M 動的1to1","-"]
[null,"動的1to1","OCN光【光一括提供型】(IPoE ワイドプラン)","マンション 100M(NTT西日本)","動的1to1OCN光【光一括提供型】(IPoE ワイドプラン)マンション 100M(NTT西日本)","OCN 光 IPoE ワイドプラン マンション 100M 動的1to1","-"]
[null,"動的1to1","OCN光【光一括提供型】(IPoE ワイドプラン)","ファミリー 200M(NTT東日本)","動的1to1OCN光【光一括提供型】(IPoE ワイドプラン)ファミリー 200M(NTT東日本)","OCN 光 IPoE ワイドプラン ファミリー 200M 動的1to1","-"]
[null,"動的1to1","OCN光【光一括提供型】(IPoE ワイドプラン)","マンション 200M(NTT東日本)","動的1to1OCN光【光一括提供型】(IPoE ワイドプラン)マンション 200M(NTT東日本)","OCN 光 IPoE ワイドプラン マンション 200M 動的1to1","-"]
[null,"動的1to1","OCN光【光一括提供型】(IPoE ワイドプラン)","ファミリー 200M(NTT西日本)","動的1to1OCN光【光一括提供型】(IPoE ワイドプラン)ファミリー 200M(NTT西日本)","OCN 光 IPoE ワイドプラン ファミリー 200M 動的1to1","-"]
[null,"動的1to1","OCN光【光一括提供型】(IPoE ワイドプラン)","マンション 200M(NTT西日本)","動的1to1OCN光【光一括提供型】(IPoE ワイドプラン)マンション 200M(NTT西日本)","OCN 光 IPoE ワイドプラン マンション 200M 動的1to1","-"]
[null,"動的1to1","OCN光【光一括提供型】(IPoE ワイドプラン)","ファミリー 1G(NTT東日本)","動的1to1OCN光【光一括提供型】(IPoE ワイドプラン)ファミリー 1G(NTT東日本)","OCN 光 IPoE ワイドプラン ファミリー 1G 動的1to1","-"]
[null,"動的1to1","OCN光【光一括提供型】(IPoE ワイドプラン)","マンション 1G(NTT東日本)","動的1to1OCN光【光一括提供型】(IPoE ワイドプラン)マンション 1G(NTT東日本)","OCN 光 IPoE ワイドプラン マンション 1G 動的1to1","-"]
[null,"動的1to1","OCN光【光一括提供型】(IPoE ワイドプラン)","ファミリー 1G(NTT西日本)","動的1to1OCN光【光一括提供型】(IPoE ワイドプラン)ファミリー 1G(NTT西日本)","OCN 光 IPoE ワイドプラン ファミリー 1G 動的1to1","-"]
[null,"動的1to1","OCN光【光一括提供型】(IPoE ワイドプラン)","マンション 1G(NTT西日本)","動的1to1OCN光【光一括提供型】(IPoE ワイドプラン)マンション 1G(NTT西日本)","OCN 光 IPoE ワイドプラン マンション 1G 動的1to1","-"]
[null,"IP1","フレッツ・ADSL","1.5Mタイプ","IP1フレッツ・ADSL1.5Mタイプ","OCN ADSLアクセス IP1 「フレッツ」プラン 1M/1.5M/8M/12M/24M/40M/47Mタイプ","xxx@ffa.ocn.ne.jp"]
[null,"IP1","フレッツ・ADSL","8Mタイプ","IP1フレッツ・ADSL8Mタイプ","OCN ADSLアクセス IP1 「フレッツ」プラン 1M/1.5M/8M/12M/24M/40M/47Mタイプ","xxx@ffa.ocn.ne.jp"]
[null,"IP1","フレッツ・ADSL","モア(12M)","IP1フレッツ・ADSLモア(12M)","OCN ADSLアクセス IP1 「フレッツ」プラン 1M/1.5M/8M/12M/24M/40M/47Mタイプ","xxx@ffa.ocn.ne.jp"]
[null,"IP1","フレッツ・ADSL","モアⅡ(24Mタイプ)/モア24(24タイプ)","IP1フレッツ・ADSLモアⅡ(24Mタイプ)/モア24(24タイプ)","OCN ADSLアクセス IP1 「フレッツ」プラン 1M/1.5M/8M/12M/24M/40M/47Mタイプ","xxx@ffa.ocn.ne.jp"]
[null,"IP1","フレッツ・ADSL","モアⅡ(40M)/モア40(40Mタイプ)","IP1フレッツ・ADSLモアⅡ(40M)/モア40(40Mタイプ)","OCN ADSLアクセス IP1 「フレッツ」プラン 1M/1.5M/8M/12M/24M/40M/47Mタイプ","xxx@ffa.ocn.ne.jp"]
[null,"IP1","フレッツ・ADSL","モアⅢ(47M)・モアスペシャル(47M)","IP1フレッツ・ADSLモアⅢ(47M)・モアスペシャル(47M)","OCN ADSLアクセス IP1 「フレッツ」プラン 1M/1.5M/8M/12M/24M/40M/47Mタイプ","xxx@ffa.ocn.ne.jp"]
[null,"IP1","フレッツ・ADSL","モアⅢ(47M)・ビジネスタイプ(NTT東日本)","IP1フレッツ・ADSLモアⅢ(47M)・ビジネスタイプ(NTT東日本)","OCN ADSLアクセス IP1 「フレッツ」プラン ビジネスタイプ","xxx@ffab.ocn.ne.jp"]
[null,"IP1","フレッツ・ADSL","モアⅡ(24M)・ビジネスタイプ(NTT東日本)","IP1フレッツ・ADSLモアⅡ(24M)・ビジネスタイプ(NTT東日本)","OCN ADSLアクセス IP1 「フレッツ」プラン ビジネスタイプ","xxx@ffab.ocn.ne.jp"]
[null,"IP1","フレッツ・ISDN",null,"IP1フレッツ・ISDN","OCN ISDNアクセス IP1 「フレッツ」プラン","xxx@ffi.ocn.ne.jp"]
[null,"IP1","Bフレッツ","ニューファミリータイプ(NTT東日本)","IP1Bフレッツニューファミリータイプ(NTT東日本)","OCN 光「フレッツ」 IP1 ファミリータイプ","xxx@fbnf2.ocn.ne.jp"]
[null,"IP1","Bフレッツ","ベーシックタイプ(NTT東日本/NTT西日本)","IP1Bフレッツベーシックタイプ(NTT東日本/NTT西日本)","OCN 光「フレッツ」 IP1 ベーシックタイプ","xxx@fbfb2.ocn.ne.jp"]
[null,"IP1","Bフレッツ","ビジネスタイプ(NTT東日本/NTT西日本)","IP1Bフレッツビジネスタイプ(NTT東日本/NTT西日本)","OCN 光「フレッツ」 IP1 ビジネスタイプ","xxx@fbfh2.ocn.ne.jp"]
[null,"IP1","Bフレッツ","ビル・マンションタイプ(NTT東日本/NTT西日本)","IP1Bフレッツビル・マンションタイプ(NTT東日本/NTT西日本)","OCN 光「フレッツ」 IP1 マンションタイプ","xxx@fbfm2.ocn.ne.jp"]
[null,"IP1","フレッツ 光ネクスト","ファミリータイプ(NTT東日本/NTT西日本)",{"$f":"B132&C132&D132","v":"IP1フレッツ 光ネクストファミリータイプ(NTT東日本/NTT西日本)"},"OCN 光「フレッツ」 IP1 ファミリータイプ","xxx@bizf.ocn.ne.jp"]
[null,"IP1","フレッツ 光ネクスト","ファミリー・ハイスピードタイプ(NTT東日本/NTT西日本)","IP1フレッツ 光ネクストファミリー・ハイスピードタイプ(NTT東日本/NTT西日本)","OCN 光「フレッツ」 IP1 ファミリータイプ","xxx@bizf.ocn.ne.jp"]
[null,"IP1","フレッツ 光ネクスト","マンションタイプ(NTT東日本/NTT西日本)","IP1フレッツ 光ネクストマンションタイプ(NTT東日本/NTT西日本)","OCN 光「フレッツ」 IP1 マンションタイプ","xxx@bizf.ocn.ne.jp"]
[null,"IP1","フレッツ 光ネクスト","マンション・ハイスピードタイプ(NTT東日本/NTT西日本)","IP1フレッツ 光ネクストマンション・ハイスピードタイプ(NTT東日本/NTT西日本)","OCN 光「フレッツ」 IP1 マンションタイプ","xxx@bizf.ocn.ne.jp"]
[null,"IP1","フレッツ 光ネクスト","ファミリー・スーパーハイスピードタイプ隼(NTT西日本)","IP1フレッツ 光ネクストファミリー・スーパーハイスピードタイプ隼(NTT西日本)","OCN 光「フレッツ」 IP1 ファミリータイプ","xxx@bizf.ocn.ne.jp"]
[null,"IP1","フレッツ 光ネクスト","マンション・スーパーハイスピードタイプ隼(NTT西日本)","IP1フレッツ 光ネクストマンション・スーパーハイスピードタイプ隼(NTT西日本)","OCN 光「フレッツ」 IP1 マンションタイプ","xxx@bizf.ocn.ne.jp"]
[null,"IP1","フレッツ 光ネクスト","ビジネスタイプ(NTT東日本/NTT西日本)","IP1フレッツ 光ネクストビジネスタイプ(NTT東日本/NTT西日本)","OCN 光「フレッツ」 IP1 ビジネスタイプ","xxx@bizf.ocn.ne.jp"]
[null,"IP1","フレッツ 光ネクスト","プライオ1(NTT東日本)","IP1フレッツ 光ネクストプライオ1(NTT東日本)","OCN 光「フレッツ」 IP1 プライオ1","xxx@bizf.ocn.ne.jp"]
[null,"IP1","フレッツ 光ネクスト","プライオ10(NTT東日本)","IP1フレッツ 光ネクストプライオ10(NTT東日本)","OCN 光「フレッツ」 IP1 プライオ10","xxx@bizf.ocn.ne.jp"]
[null,"IP1","フレッツ 光ネクスト","ギガファミリー・スマートタイプ(NTT東日本)","IP1フレッツ 光ネクストギガファミリー・スマートタイプ(NTT東日本)","OCN 光「フレッツ」 IP1 ギガファミリー","xxx@bizf.ocn.ne.jp"]
[null,"IP1","フレッツ 光ネクスト","ギガマンション・スマートタイプ(NTT東日本)","IP1フレッツ 光ネクストギガマンション・スマートタイプ(NTT東日本)","OCN 光「フレッツ」 IP1 ギガファミリー","xxx@bizf.ocn.ne.jp"]
[null,"IP1","フレッツ 光ネクスト","ファミリー・ギガラインタイプ(NTT東日本)","IP1フレッツ 光ネクストファミリー・ギガラインタイプ(NTT東日本)","OCN 光「フレッツ」 IP1 ギガファミリー","xxx@bizf.ocn.ne.jp"]
[null,"IP1","フレッツ 光ネクスト","マンション・ギガラインタイプ(NTT東日本)","IP1フレッツ 光ネクストマンション・ギガラインタイプ(NTT東日本)","OCN 光「フレッツ」 IP1 ギガファミリー","xxx@bizf.ocn.ne.jp"]
[null,"IP1","フレッツ 光ライト","ファミリータイプ","IP1フレッツ 光ライトファミリータイプ","OCN 光「フレッツ」 IP1 ファミリータイプ","xxx@bizf.ocn.ne.jp"]
[null,"IP1","フレッツ 光ライト","マンションタイプ","IP1フレッツ 光ライトマンションタイプ","OCN 光「フレッツ」 IP1 マンションタイプ","xxx@bizf.ocn.ne.jp"]
[null,"IP1","OCN光【光一括提供型】","ファミリー 100M(NTT東日本)","IP1OCN光【光一括提供型】ファミリー 100M(NTT東日本)","OCN 光 ファミリー 100M IP1","xxx@bizf.ocn.ne.jp"]
[null,"IP1","OCN光【光一括提供型】","マンション 100M(NTT東日本)","IP1OCN光【光一括提供型】マンション 100M(NTT東日本)","OCN 光 マンション 100M IP1","xxx@bizf.ocn.ne.jp"]
[null,"IP1","OCN光【光一括提供型】","ファミリー 100M(NTT西日本)","IP1OCN光【光一括提供型】ファミリー 100M(NTT西日本)","OCN 光 ファミリー 100M IP1","xxx@bizf.ocn.ne.jp"]
[null,"IP1","OCN光【光一括提供型】","マンション 100M(NTT西日本)","IP1OCN光【光一括提供型】マンション 100M(NTT西日本)","OCN 光 マンション 100M IP1","xxx@bizf.ocn.ne.jp"]
[null,"IP1","OCN光【光一括提供型】","ファミリー 200M(NTT東日本)","IP1OCN光【光一括提供型】ファミリー 200M(NTT東日本)","OCN 光 ファミリー 200M IP1","xxx@bizf.ocn.ne.jp"]
[null,"IP1","OCN光【光一括提供型】","マンション 200M(NTT東日本)","IP1OCN光【光一括提供型】マンション 200M(NTT東日本)","OCN 光 マンション 200M IP1","xxx@bizf.ocn.ne.jp"]
[null,"IP1","OCN光【光一括提供型】","ファミリー 200M(NTT西日本)","IP1OCN光【光一括提供型】ファミリー 200M(NTT西日本)","OCN 光 ファミリー 200M IP1","xxx@bizf.ocn.ne.jp"]
[null,"IP1","OCN光【光一括提供型】","マンション 200M(NTT西日本)","IP1OCN光【光一括提供型】マンション 200M(NTT西日本)","OCN 光 マンション 200M IP1","xxx@bizf.ocn.ne.jp"]
[null,"IP1","OCN光【光一括提供型】","ファミリー 1G(NTT東日本)","IP1OCN光【光一括提供型】ファミリー 1G(NTT東日本)","OCN 光 ファミリー 1G IP1","xxx@bizf.ocn.ne.jp"]
[null,"IP1","OCN光【光一括提供型】","マンション 1G(NTT東日本)","IP1OCN光【光一括提供型】マンション 1G(NTT東日本)","OCN 光 マンション 1G IP1","xxx@bizf.ocn.ne.jp"]
[null,"IP1","OCN光【光一括提供型】","ファミリー 1G(NTT西日本)","IP1OCN光【光一括提供型】ファミリー 1G(NTT西日本)","OCN 光 ファミリー 1G IP1","xxx@bizf.ocn.ne.jp"]
[null,"IP1","OCN光【光一括提供型】","マンション 1G(NTT西日本)","IP1OCN光【光一括提供型】マンション 1G(NTT西日本)","OCN 光 マンション 1G IP1","xxx@bizf.ocn.ne.jp"]
[null,"IP1","フレッツ 光ネクスト(IPoE 標準プラン)","NTT東日本","IP1フレッツ 光ネクスト(IPoE 標準プラン)NTT東日本","OCN 光「フレッツ」 IPoE 標準プラン IP1","-"]
[null,"IP1","フレッツ 光ネクスト(IPoE 標準プラン)","NTT西日本","IP1フレッツ 光ネクスト(IPoE 標準プラン)NTT西日本","OCN 光「フレッツ」 IPoE 標準プラン IP1","-"]
[null,"IP1","フレッツ 光ネクスト(IPoE ワイドプラン)","NTT東日本","IP1フレッツ 光ネクスト(IPoE ワイドプラン)NTT東日本","OCN 光「フレッツ」 IPoE ワイドプラン IP1","-"]
[null,"IP1","フレッツ 光ネクスト(IPoE ワイドプラン)","NTT西日本","IP1フレッツ 光ネクスト(IPoE ワイドプラン)NTT西日本","OCN 光「フレッツ」 IPoE ワイドプラン IP1","-"]
[null,"IP1","OCN光【光一括提供型】(IPoE 標準プラン)","ファミリー 100M(NTT東日本)","IP1OCN光【光一括提供型】(IPoE 標準プラン)ファミリー 100M(NTT東日本)","OCN 光 IPoE 標準プラン ファミリー 100M IP1","-"]
[null,"IP1","OCN光【光一括提供型】(IPoE 標準プラン)","マンション 100M(NTT東日本)","IP1OCN光【光一括提供型】(IPoE 標準プラン)マンション 100M(NTT東日本)","OCN 光 IPoE 標準プラン マンション 100M IP1","-"]
[null,"IP1","OCN光【光一括提供型】(IPoE 標準プラン)","ファミリー 100M(NTT西日本)","IP1OCN光【光一括提供型】(IPoE 標準プラン)ファミリー 100M(NTT西日本)","OCN 光 IPoE 標準プラン ファミリー 100M IP1","-"]
[null,"IP1","OCN光【光一括提供型】(IPoE 標準プラン)","マンション 100M(NTT西日本)","IP1OCN光【光一括提供型】(IPoE 標準プラン)マンション 100M(NTT西日本)","OCN 光 IPoE 標準プラン マンション 100M IP1","-"]
[null,"IP1","OCN光【光一括提供型】(IPoE 標準プラン)","ファミリー 200M(NTT東日本)","IP1OCN光【光一括提供型】(IPoE 標準プラン)ファミリー 200M(NTT東日本)","OCN 光 IPoE 標準プラン ファミリー 200M IP1","-"]
[null,"IP1","OCN光【光一括提供型】(IPoE 標準プラン)","マンション 200M(NTT東日本)","IP1OCN光【光一括提供型】(IPoE 標準プラン)マンション 200M(NTT東日本)","OCN 光 IPoE 標準プラン マンション 200M IP1","-"]
[null,"IP1","OCN光【光一括提供型】(IPoE 標準プラン)","ファミリー 200M(NTT西日本)","IP1OCN光【光一括提供型】(IPoE 標準プラン)ファミリー 200M(NTT西日本)","OCN 光 IPoE 標準プラン ファミリー 200M IP1","-"]
[null,"IP1","OCN光【光一括提供型】(IPoE 標準プラン)","マンション 200M(NTT西日本)","IP1OCN光【光一括提供型】(IPoE 標準プラン)マンション 200M(NTT西日本)","OCN 光 IPoE 標準プラン マンション 200M IP1","-"]
[null,"IP1","OCN光【光一括提供型】(IPoE 標準プラン)","ファミリー 1G(NTT東日本)","IP1OCN光【光一括提供型】(IPoE 標準プラン)ファミリー 1G(NTT東日本)","OCN 光 IPoE 標準プラン ファミリー 1G IP1","-"]
[null,"IP1","OCN光【光一括提供型】(IPoE 標準プラン)","マンション 1G(NTT東日本)","IP1OCN光【光一括提供型】(IPoE 標準プラン)マンション 1G(NTT東日本)","OCN 光 IPoE 標準プラン マンション 1G IP1","-"]
[null,"IP1","OCN光【光一括提供型】(IPoE 標準プラン)","ファミリー 1G(NTT西日本)","IP1OCN光【光一括提供型】(IPoE 標準プラン)ファミリー 1G(NTT西日本)","OCN 光 IPoE 標準プラン ファミリー 1G IP1","-"]
[null,"IP1","OCN光【光一括提供型】(IPoE 標準プラン)","マンション 1G(NTT西日本)","IP1OCN光【光一括提供型】(IPoE 標準プラン)マンション 1G(NTT西日本)","OCN 光 IPoE 標準プラン マンション 1G IP1","-"]
[null,"IP1","OCN光【光一括提供型】(IPoE ワイドプラン)","ファミリー 100M(NTT東日本)","IP1OCN光【光一括提供型】(IPoE ワイドプラン)ファミリー 100M(NTT東日本)","OCN 光 IPoE ワイドプラン ファミリー 100M IP1","-"]
[null,"IP1","OCN光【光一括提供型】(IPoE ワイドプラン)","マンション 100M(NTT東日本)","IP1OCN光【光一括提供型】(IPoE ワイドプラン)マンション 100M(NTT東日本)","OCN 光 IPoE ワイドプラン マンション 100M IP1","-"]
[null,"IP1","OCN光【光一括提供型】(IPoE ワイドプラン)","ファミリー 100M(NTT西日本)","IP1OCN光【光一括提供型】(IPoE ワイドプラン)ファミリー 100M(NTT西日本)","OCN 光 IPoE ワイドプラン ファミリー 100M IP1","-"]
[null,"IP1","OCN光【光一括提供型】(IPoE ワイドプラン)","マンション 100M(NTT西日本)","IP1OCN光【光一括提供型】(IPoE ワイドプラン)マンション 100M(NTT西日本)","OCN 光 IPoE ワイドプラン マンション 100M IP1","-"]
[null,"IP1","OCN光【光一括提供型】(IPoE ワイドプラン)","ファミリー 200M(NTT東日本)","IP1OCN光【光一括提供型】(IPoE ワイドプラン)ファミリー 200M(NTT東日本)","OCN 光 IPoE ワイドプラン ファミリー 200M IP1","-"]
[null,"IP1","OCN光【光一括提供型】(IPoE ワイドプラン)","マンション 200M(NTT東日本)","IP1OCN光【光一括提供型】(IPoE ワイドプラン)マンション 200M(NTT東日本)","OCN 光 IPoE ワイドプラン マンション 200M IP1","-"]
[null,"IP1","OCN光【光一括提供型】(IPoE ワイドプラン)","ファミリー 200M(NTT西日本)","IP1OCN光【光一括提供型】(IPoE ワイドプラン)ファミリー 200M(NTT西日本)","OCN 光 IPoE ワイドプラン ファミリー 200M IP1","-"]
[null,"IP1","OCN光【光一括提供型】(IPoE ワイドプラン)","マンション 200M(NTT西日本)","IP1OCN光【光一括提供型】(IPoE ワイドプラン)マンション 200M(NTT西日本)","OCN 光 IPoE ワイドプラン マンション 200M IP1","-"]
[null,"IP1","OCN光【光一括提供型】(IPoE ワイドプラン)","ファミリー 1G(NTT東日本)","IP1OCN光【光一括提供型】(IPoE ワイドプラン)ファミリー 1G(NTT東日本)","OCN 光 IPoE ワイドプラン ファミリー 1G IP1","-"]
[null,"IP1","OCN光【光一括提供型】(IPoE ワイドプラン)","マンション 1G(NTT東日本)","IP1OCN光【光一括提供型】(IPoE ワイドプラン)マンション 1G(NTT東日本)","OCN 光 IPoE ワイドプラン マンション 1G IP1","-"]
[null,"IP1","OCN光【光一括提供型】(IPoE ワイドプラン)","ファミリー 1G(NTT西日本)","IP1OCN光【光一括提供型】(IPoE ワイドプラン)ファミリー 1G(NTT西日本)","OCN 光 IPoE ワイドプラン ファミリー 1G IP1","-"]
[null,"IP1","OCN光【光一括提供型】(IPoE ワイドプラン)","マンション 1G(NTT西日本)","IP1OCN光【光一括提供型】(IPoE ワイドプラン)マンション 1G(NTT西日本)","OCN 光 IPoE ワイドプラン マンション 1G IP1","-"]
[null,"IP1","OCN ADSLサービス(F)","モアⅢ(47M)(NTT東日本)","IP1OCN ADSLサービス(F)モアⅢ(47M)(NTT東日本)","OCN ADSLサービス IP1(F)47M 東タイプ","xxx@ffa.ocn.ne.jp"]
[null,"IP1","OCN ADSLサービス(F)","モアスペシャル(47M)(NTT西日本)","IP1OCN ADSLサービス(F)モアスペシャル(47M)(NTT西日本)","OCN ADSLサービス IP1(F)47M 西タイプ","xxx@ffa.ocn.ne.jp"]
[null,"IP1","OCN ADSLサービス(F)","モアⅡ(40M)(NTT東日本)","IP1OCN ADSLサービス(F)モアⅡ(40M)(NTT東日本)","OCN ADSLサービス IP1(F)40M 東タイプ","xxx@ffa.ocn.ne.jp"]
[null,"IP1","OCN ADSLサービス(F)","モア40(40M)(NTT西日本)","IP1OCN ADSLサービス(F)モア40(40M)(NTT西日本)","OCN ADSLサービス IP1(F)40M 西タイプ","xxx@ffa.ocn.ne.jp"]
[null,"IP1","OCN ADSLサービス(F)","モア24(24M)(NTT西日本)","IP1OCN ADSLサービス(F)モア24(24M)(NTT西日本)","OCN ADSLサービス IP1(F)24M 西タイプ","xxx@ffa.ocn.ne.jp"]
[null,"IP1","OCN ADSLサービス(F)","モア(12M)(NTT東日本)","IP1OCN ADSLサービス(F)モア(12M)(NTT東日本)","OCN ADSLサービス IP1(F)12M 東タイプ","xxx@ffa.ocn.ne.jp"]
[null,"IP1","OCN ADSLサービス(F)","モア(12M)(NTT西日本)","IP1OCN ADSLサービス(F)モア(12M)(NTT西日本)","OCN ADSLサービス IP1(F)12M 西タイプ","xxx@ffa.ocn.ne.jp"]
[null,"IP1","OCN ADSLサービス(F)","8M(NTT東日本)","IP1OCN ADSLサービス(F)8M(NTT東日本)","OCN ADSLサービス IP1(F)8M 東タイプ","xxx@ffa.ocn.ne.jp"]
[null,"IP1","OCN ADSLサービス(F)","8M(NTT西日本)","IP1OCN ADSLサービス(F)8M(NTT西日本)","OCN ADSLサービス IP1(F)8M 西タイプ","xxx@ffa.ocn.ne.jp"]
[null,"IP1","OCN ADSLサービス(F)","1.5M(NTT東日本)",{"$f":"B196&C196&D196","v":"IP1OCN ADSLサービス(F)1.5M(NTT東日本)"},"OCN ADSLサービス IP1(F)1.5M 東タイプ","xxx@ffa.ocn.ne.jp"]
[null,"IP1","OCN ADSLサービス(F)","1.5M(NTT西日本)","IP1OCN ADSLサービス(F)1.5M(NTT西日本)","OCN ADSLサービス IP1(F)1.5M 西タイプ","xxx@ffa.ocn.ne.jp"]
[null,"IP1","OCN ADSLサービス(F)","モアⅢ(47M)・ビジネスタイプ(NTT東日本)","IP1OCN ADSLサービス(F)モアⅢ(47M)・ビジネスタイプ(NTT東日本)","OCN ADSLサービス IP1(F)ビジネス47M 東タイプ","xxx@ffab.ocn.ne.jp"]
[null,"IP1","OCN ADSLサービス(F)","モアⅡ(40M)・ビジネスタイプ(NTT東日本)","IP1OCN ADSLサービス(F)モアⅡ(40M)・ビジネスタイプ(NTT東日本)","OCN ADSLサービス IP1(F)ビジネス40M 東タイプ","xxx@ffab.ocn.ne.jp"]
[null,"IP1","OCN 光サービス(F)「光ネクスト」","ファミリータイプ(NTT東日本)","IP1OCN 光サービス(F)「光ネクスト」ファミリータイプ(NTT東日本)","OCN 光サービス IP1(F) 「光ネクスト」ファミリータイプ 東タイプ","xxx@bizf.ocn.ne.jp"]
[null,"IP1","OCN 光サービス(F)「光ネクスト」","ファミリータイプ(NTT西日本)","IP1OCN 光サービス(F)「光ネクスト」ファミリータイプ(NTT西日本)","OCN 光サービス IP1(F) 「光ネクスト」ファミリータイプ 西タイプ","xxx@bizf.ocn.ne.jp"]
[null,"IP1","OCN 光サービス(F)「光ネクスト」","ファミリー・ハイスピードタイプ(NTT東日本)","IP1OCN 光サービス(F)「光ネクスト」ファミリー・ハイスピードタイプ(NTT東日本)","OCN 光サービス IP1(F) 「光ネクスト」ファミリー･ハイスピードタイプ 東タイプ","xxx@bizf.ocn.ne.jp"]
[null,"IP1","OCN 光サービス(F)「光ネクスト」","ファミリー・ハイスピードタイプ(NTT西日本)","IP1OCN 光サービス(F)「光ネクスト」ファミリー・ハイスピードタイプ(NTT西日本)","OCN 光サービス IP1(F) 「光ネクスト」ファミリー･ハイスピードタイプ 西タイプ","xxx@bizf.ocn.ne.jp"]
[null,"IP1","OCN 光サービス(F)「光ネクスト」","ファミリー・スーパーハイスピードタイプ隼(NTT西日本)","IP1OCN 光サービス(F)「光ネクスト」ファミリー・スーパーハイスピードタイプ隼(NTT西日本)","OCN 光サービス IP1(F) 「光ネクスト」ファミリー･スーパーハイスピード隼 西タイプ","xxx@bizf.ocn.ne.jp"]
[null,"IP1","OCN 光サービス(F)「光ネクスト」","ビジネスタイプ(NTT東日本)","IP1OCN 光サービス(F)「光ネクスト」ビジネスタイプ(NTT東日本)","OCN 光サービス IP1(F) 「光ネクスト」ビジネスタイプ 東タイプ","xxx@bizf.ocn.ne.jp"]
[null,"IP1","OCN 光サービス(F)「光ネクスト」","ビジネスタイプ(NTT西日本)","IP1OCN 光サービス(F)「光ネクスト」ビジネスタイプ(NTT西日本)","OCN 光サービス IP1(F) 「光ネクスト」ビジネスタイプ 西タイプ","xxx@bizf.ocn.ne.jp"]
[null,"IP1","OCN 光サービス(F)「光ネクスト」","プライオ1(NTT東日本)","IP1OCN 光サービス(F)「光ネクスト」プライオ1(NTT東日本)","OCN 光サービス IP1(F) 「光ネクスト」プライオ1 東タイプ","xxx@bizf.ocn.ne.jp"]
[null,"IP1","OCN 光サービス(F)「光ネクスト」","プライオ10(NTT東日本)","IP1OCN 光サービス(F)「光ネクスト」プライオ10(NTT東日本)","OCN 光サービス IP1(F) 「光ネクスト」プライオ10 東タイプ","xxx@bizf.ocn.ne.jp"]
[null,"IP1","OCN 光サービス(F)「光ネクスト」","ギガファミリー・スマートタイプ(NTT東日本)","IP1OCN 光サービス(F)「光ネクスト」ギガファミリー・スマートタイプ(NTT東日本)","OCN 光サービス IP1(F) 「光ネクスト」ギガファミリー 東タイプ","xxx@bizf.ocn.ne.jp"]
[null,"IP1","OCN 光サービス(F)「光ネクスト」","ファミリー・ギガラインタイプ(NTT東日本)","IP1OCN 光サービス(F)「光ネクスト」ファミリー・ギガラインタイプ(NTT東日本)","OCN 光サービス IP1(F) 「光ネクスト」ファミリー･ギガライン 東タイプ","xxx@bizf.ocn.ne.jp"]
[null,"IP8","フレッツ・ADSL","1.5Mタイプ","IP8フレッツ・ADSL1.5Mタイプ","OCN ADSLアクセス IP8 「フレッツ」プラン 1M/1.5M/8M/12M/24M/40M/47Mタイプ","xxx@ffa.ocn.ne.jp"]
[null,"IP8","フレッツ・ADSL","8Mタイプ","IP8フレッツ・ADSL8Mタイプ","OCN ADSLアクセス IP8 「フレッツ」プラン 1M/1.5M/8M/12M/24M/40M/47Mタイプ","xxx@ffa.ocn.ne.jp"]
[null,"IP8","フレッツ・ADSL","モア(12M)","IP8フレッツ・ADSLモア(12M)","OCN ADSLアクセス IP8 「フレッツ」プラン 1M/1.5M/8M/12M/24M/40M/47Mタイプ","xxx@ffa.ocn.ne.jp"]
[null,"IP8","フレッツ・ADSL","モアⅡ(24Mタイプ)/モア24(24タイプ)","IP8フレッツ・ADSLモアⅡ(24Mタイプ)/モア24(24タイプ)","OCN ADSLアクセス IP8 「フレッツ」プラン 1M/1.5M/8M/12M/24M/40M/47Mタイプ","xxx@ffa.ocn.ne.jp"]
[null,"IP8","フレッツ・ADSL","モアⅡ(40M)/モア40(40Mタイプ)","IP8フレッツ・ADSLモアⅡ(40M)/モア40(40Mタイプ)","OCN ADSLアクセス IP8 「フレッツ」プラン 1M/1.5M/8M/12M/24M/40M/47Mタイプ","xxx@ffa.ocn.ne.jp"]
[null,"IP8","フレッツ・ADSL","モアⅢ(47M)・モアスペシャル(47M)","IP8フレッツ・ADSLモアⅢ(47M)・モアスペシャル(47M)","OCN ADSLアクセス IP8 「フレッツ」プラン 1M/1.5M/8M/12M/24M/40M/47Mタイプ","xxx@ffa.ocn.ne.jp"]
[null,"IP8","フレッツ・ADSL","モアⅢ(47M)・ビジネスタイプ(NTT東日本)","IP8フレッツ・ADSLモアⅢ(47M)・ビジネスタイプ(NTT東日本)","OCN ADSLアクセス IP8 「フレッツ」プラン ビジネスタイプ","xxx@ffab.ocn.ne.jp"]
[null,"IP8","フレッツ・ADSL","モアⅡ(24M)・ビジネスタイプ(NTT東日本)","IP8フレッツ・ADSLモアⅡ(24M)・ビジネスタイプ(NTT東日本)","OCN ADSLアクセス IP8 「フレッツ」プラン ビジネスタイプ","xxx@ffab.ocn.ne.jp"]
[null,"IP8","フレッツ・ISDN",null,"IP8フレッツ・ISDN","OCN ISDNアクセス IP8 「フレッツ」プラン","xxx@ffi.ocn.ne.jp"]
[null,"IP8","Bフレッツ","ニューファミリータイプ(NTT東日本)","IP8Bフレッツニューファミリータイプ(NTT東日本)","OCN 光「フレッツ」 IP8 ファミリータイプ","xxx@fbnf2.ocn.ne.jp"]
[null,"IP8","Bフレッツ","ベーシックタイプ(NTT東日本/NTT西日本)","IP8Bフレッツベーシックタイプ(NTT東日本/NTT西日本)","OCN 光「フレッツ」 IP8 ベーシックタイプ","xxx@fbfb2.ocn.ne.jp"]
[null,"IP8","Bフレッツ","ビジネスタイプ(NTT東日本/NTT西日本)","IP8Bフレッツビジネスタイプ(NTT東日本/NTT西日本)","OCN 光「フレッツ」 IP8 ビジネスタイプ","xxx@fbfh2.ocn.ne.jp"]
[null,"IP8","Bフレッツ","ビル・マンションタイプ(NTT東日本/NTT西日本)","IP8Bフレッツビル・マンションタイプ(NTT東日本/NTT西日本)","OCN 光「フレッツ」 IP8 マンションタイプ","xxx@fbfm2.ocn.ne.jp"]
[null,"IP8","フレッツ 光ネクスト","ファミリータイプ(NTT東日本/NTT西日本)","IP8フレッツ 光ネクストファミリータイプ(NTT東日本/NTT西日本)","OCN 光「フレッツ」 IP8 ファミリータイプ","xxx@bizf.ocn.ne.jp"]
[null,"IP8","フレッツ 光ネクスト","ファミリー・ハイスピードタイプ(NTT東日本/NTT西日本)","IP8フレッツ 光ネクストファミリー・ハイスピードタイプ(NTT東日本/NTT西日本)","OCN 光「フレッツ」 IP8 ファミリータイプ","xxx@bizf.ocn.ne.jp"]
[null,"IP8","フレッツ 光ネクスト","マンションタイプ(NTT東日本/NTT西日本)","IP8フレッツ 光ネクストマンションタイプ(NTT東日本/NTT西日本)","OCN 光「フレッツ」 IP8 マンションタイプ","xxx@bizf.ocn.ne.jp"]
[null,"IP8","フレッツ 光ネクスト","マンション・ハイスピードタイプ(NTT東日本/NTT西日本)","IP8フレッツ 光ネクストマンション・ハイスピードタイプ(NTT東日本/NTT西日本)","OCN 光「フレッツ」 IP8 マンションタイプ","xxx@bizf.ocn.ne.jp"]
[null,"IP8","フレッツ 光ネクスト","ファミリー・スーパーハイスピードタイプ隼(NTT西日本)","IP8フレッツ 光ネクストファミリー・スーパーハイスピードタイプ隼(NTT西日本)","OCN 光「フレッツ」 IP8 ファミリータイプ","xxx@bizf.ocn.ne.jp"]
[null,"IP8","フレッツ 光ネクスト","マンション・スーパーハイスピードタイプ隼(NTT西日本)","IP8フレッツ 光ネクストマンション・スーパーハイスピードタイプ隼(NTT西日本)","OCN 光「フレッツ」 IP8 マンションタイプ","xxx@bizf.ocn.ne.jp"]
[null,"IP8","フレッツ 光ネクスト","ビジネスタイプ(NTT東日本/NTT西日本)","IP8フレッツ 光ネクストビジネスタイプ(NTT東日本/NTT西日本)","OCN 光「フレッツ」 IP8 ビジネスタイプ","xxx@bizf.ocn.ne.jp"]
[null,"IP8","フレッツ 光ネクスト","プライオ1(NTT東日本)","IP8フレッツ 光ネクストプライオ1(NTT東日本)","OCN 光「フレッツ」 IP8 プライオ1","xxx@bizf.ocn.ne.jp"]
[null,"IP8","フレッツ 光ネクスト","プライオ10(NTT東日本)","IP8フレッツ 光ネクストプライオ10(NTT東日本)","OCN 光「フレッツ」 IP8 プライオ10","xxx@bizf.ocn.ne.jp"]
[null,"IP8","フレッツ 光ネクスト","ギガファミリー・スマートタイプ(NTT東日本)","IP8フレッツ 光ネクストギガファミリー・スマートタイプ(NTT東日本)","OCN 光「フレッツ」 IP8 ギガファミリー","xxx@bizf.ocn.ne.jp"]
[null,"IP8","フレッツ 光ネクスト","ギガマンション・スマートタイプ(NTT東日本)","IP8フレッツ 光ネクストギガマンション・スマートタイプ(NTT東日本)","OCN 光「フレッツ」 IP8 ギガファミリー","xxx@bizf.ocn.ne.jp"]
[null,"IP8","フレッツ 光ネクスト","ファミリー・ギガラインタイプ(NTT東日本)","IP8フレッツ 光ネクストファミリー・ギガラインタイプ(NTT東日本)","OCN 光「フレッツ」 IP8 ギガファミリー","xxx@bizf.ocn.ne.jp"]
[null,"IP8","フレッツ 光ネクスト","マンション・ギガラインタイプ(NTT東日本)","IP8フレッツ 光ネクストマンション・ギガラインタイプ(NTT東日本)","OCN 光「フレッツ」 IP8 ギガファミリー","xxx@bizf.ocn.ne.jp"]
[null,"IP8","フレッツ 光ライト","ファミリータイプ(NTT東日本/NTT西日本)","IP8フレッツ 光ライトファミリータイプ(NTT東日本/NTT西日本)","OCN 光「フレッツ」 IP8 ファミリータイプ","xxx@bizf.ocn.ne.jp"]
[null,"IP8","フレッツ 光ライト","マンションタイプ(NTT東日本/NTT西日本)","IP8フレッツ 光ライトマンションタイプ(NTT東日本/NTT西日本)","OCN 光「フレッツ」 IP8 マンションタイプ","xxx@bizf.ocn.ne.jp"]
[null,"IP8","OCN光【光一括提供型】","ファミリー 100M(NTT東日本)","IP8OCN光【光一括提供型】ファミリー 100M(NTT東日本)","OCN 光 ファミリー 100M IP8","xxx@bizf.ocn.ne.jp"]
[null,"IP8","OCN光【光一括提供型】","マンション 100M(NTT東日本)","IP8OCN光【光一括提供型】マンション 100M(NTT東日本)","OCN 光 マンション 100M IP8","xxx@bizf.ocn.ne.jp"]
[null,"IP8","OCN光【光一括提供型】","ファミリー 100M(NTT西日本)","IP8OCN光【光一括提供型】ファミリー 100M(NTT西日本)","OCN 光 ファミリー 100M IP8","xxx@bizf.ocn.ne.jp"]
[null,"IP8","OCN光【光一括提供型】","マンション 100M(NTT西日本)","IP8OCN光【光一括提供型】マンション 100M(NTT西日本)","OCN 光 マンション 100M IP8","xxx@bizf.ocn.ne.jp"]
[null,"IP8","OCN光【光一括提供型】","ファミリー 200M(NTT東日本)","IP8OCN光【光一括提供型】ファミリー 200M(NTT東日本)","OCN 光 ファミリー 200M IP8","xxx@bizf.ocn.ne.jp"]
[null,"IP8","OCN光【光一括提供型】","マンション 200M(NTT東日本)","IP8OCN光【光一括提供型】マンション 200M(NTT東日本)","OCN 光 マンション 200M IP8","xxx@bizf.ocn.ne.jp"]
[null,"IP8","OCN光【光一括提供型】","ファミリー 200M(NTT西日本)","IP8OCN光【光一括提供型】ファミリー 200M(NTT西日本)","OCN 光 ファミリー 200M IP8","xxx@bizf.ocn.ne.jp"]
[null,"IP8","OCN光【光一括提供型】","マンション 200M(NTT西日本)","IP8OCN光【光一括提供型】マンション 200M(NTT西日本)","OCN 光 マンション 200M IP8","xxx@bizf.ocn.ne.jp"]
[null,"IP8","OCN光【光一括提供型】","ファミリー 1G(NTT西日本)","IP8OCN光【光一括提供型】ファミリー 1G(NTT西日本)","OCN 光 ファミリー 1G IP8","xxx@bizf.ocn.ne.jp"]
[null,"IP8","OCN光【光一括提供型】","マンション 1G(NTT西日本)","IP8OCN光【光一括提供型】マンション 1G(NTT西日本)","OCN 光 マンション 1G IP8","xxx@bizf.ocn.ne.jp"]
[null,"IP8","OCN光【光一括提供型】","ファミリー 1G(NTT東日本)","IP8OCN光【光一括提供型】ファミリー 1G(NTT東日本)","OCN 光 ファミリー 1G IP8","xxx@bizf.ocn.ne.jp"]
[null,"IP8","OCN光【光一括提供型】","マンション 1G(NTT東日本)","IP8OCN光【光一括提供型】マンション 1G(NTT東日本)","OCN 光 マンション 1G IP8","xxx@bizf.ocn.ne.jp"]
[null,"IP8","フレッツ 光ネクスト(IPoE 標準プラン)","NTT東日本","IP8フレッツ 光ネクスト(IPoE 標準プラン)NTT東日本","OCN 光「フレッツ」 IPoE 標準プラン IP8","-"]
[null,"IP8","フレッツ 光ネクスト(IPoE 標準プラン)","NTT西日本","IP8フレッツ 光ネクスト(IPoE 標準プラン)NTT西日本","OCN 光「フレッツ」 IPoE 標準プラン IP8","-"]
[null,"IP8","フレッツ 光ネクスト(IPoE ワイドプラン)","NTT東日本","IP8フレッツ 光ネクスト(IPoE ワイドプラン)NTT東日本","OCN 光「フレッツ」 IPoE ワイドプラン IP8","-"]
[null,"IP8","フレッツ 光ネクスト(IPoE ワイドプラン)","NTT西日本","IP8フレッツ 光ネクスト(IPoE ワイドプラン)NTT西日本","OCN 光「フレッツ」 IPoE ワイドプラン IP8","-"]
[null,"IP8","OCN光【光一括提供型】(IPoE 標準プラン)","ファミリー 100M(NTT東日本)","IP8OCN光【光一括提供型】(IPoE 標準プラン)ファミリー 100M(NTT東日本)","OCN 光 IPoE 標準プラン ファミリー 100M  IP8","-"]
[null,"IP8","OCN光【光一括提供型】(IPoE 標準プラン)","マンション 100M(NTT東日本)","IP8OCN光【光一括提供型】(IPoE 標準プラン)マンション 100M(NTT東日本)","OCN 光 IPoE 標準プラン マンション 100M  IP8","-"]
[null,"IP8","OCN光【光一括提供型】(IPoE 標準プラン)","ファミリー 100M(NTT西日本)","IP8OCN光【光一括提供型】(IPoE 標準プラン)ファミリー 100M(NTT西日本)","OCN 光 IPoE 標準プラン ファミリー 100M  IP8","-"]
[null,"IP8","OCN光【光一括提供型】(IPoE 標準プラン)","マンション 100M(NTT西日本)","IP8OCN光【光一括提供型】(IPoE 標準プラン)マンション 100M(NTT西日本)","OCN 光 IPoE 標準プラン マンション 100M  IP8","-"]
[null,"IP8","OCN光【光一括提供型】(IPoE 標準プラン)","ファミリー 200M(NTT東日本)","IP8OCN光【光一括提供型】(IPoE 標準プラン)ファミリー 200M(NTT東日本)","OCN 光 IPoE 標準プラン ファミリー 200M  IP8","-"]
[null,"IP8","OCN光【光一括提供型】(IPoE 標準プラン)","マンション 200M(NTT東日本)",{"$f":"B260&C260&D260","v":"IP8OCN光【光一括提供型】(IPoE 標準プラン)マンション 200M(NTT東日本)"},"OCN 光 IPoE 標準プラン マンション 200M  IP8","-"]
[null,"IP8","OCN光【光一括提供型】(IPoE 標準プラン)","ファミリー 200M(NTT西日本)","IP8OCN光【光一括提供型】(IPoE 標準プラン)ファミリー 200M(NTT西日本)","OCN 光 IPoE 標準プラン ファミリー 200M  IP8","-"]
[null,"IP8","OCN光【光一括提供型】(IPoE 標準プラン)","マンション 200M(NTT西日本)","IP8OCN光【光一括提供型】(IPoE 標準プラン)マンション 200M(NTT西日本)","OCN 光 IPoE 標準プラン マンション 200M  IP8","-"]
[null,"IP8","OCN光【光一括提供型】(IPoE 標準プラン)","ファミリー 1G(NTT西日本)","IP8OCN光【光一括提供型】(IPoE 標準プラン)ファミリー 1G(NTT西日本)","OCN 光 IPoE 標準プラン ファミリー 1G  IP8","-"]
[null,"IP8","OCN光【光一括提供型】(IPoE 標準プラン)","マンション 1G(NTT西日本)","IP8OCN光【光一括提供型】(IPoE 標準プラン)マンション 1G(NTT西日本)","OCN 光 IPoE 標準プラン マンション 1G  IP8","-"]
[null,"IP8","OCN光【光一括提供型】(IPoE 標準プラン)","ファミリー 1G(NTT東日本)","IP8OCN光【光一括提供型】(IPoE 標準プラン)ファミリー 1G(NTT東日本)","OCN 光 IPoE 標準プラン ファミリー 1G  IP8","-"]
[null,"IP8","OCN光【光一括提供型】(IPoE 標準プラン)","マンション 1G(NTT東日本)","IP8OCN光【光一括提供型】(IPoE 標準プラン)マンション 1G(NTT東日本)","OCN 光 IPoE 標準プラン マンション 1G  IP8","-"]
[null,"IP8","OCN光【光一括提供型】(IPoE ワイドプラン)","ファミリー 100M(NTT東日本)","IP8OCN光【光一括提供型】(IPoE ワイドプラン)ファミリー 100M(NTT東日本)","OCN 光 IPoE ワイドプラン ファミリー 100M  IP8","-"]
[null,"IP8","OCN光【光一括提供型】(IPoE ワイドプラン)","マンション 100M(NTT東日本)","IP8OCN光【光一括提供型】(IPoE ワイドプラン)マンション 100M(NTT東日本)","OCN 光 IPoE ワイドプラン マンション 100M  IP8","-"]
[null,"IP8","OCN光【光一括提供型】(IPoE ワイドプラン)","ファミリー 100M(NTT西日本)","IP8OCN光【光一括提供型】(IPoE ワイドプラン)ファミリー 100M(NTT西日本)","OCN 光 IPoE ワイドプラン ファミリー 100M  IP8","-"]
[null,"IP8","OCN光【光一括提供型】(IPoE ワイドプラン)","マンション 100M(NTT西日本)","IP8OCN光【光一括提供型】(IPoE ワイドプラン)マンション 100M(NTT西日本)","OCN 光 IPoE ワイドプラン マンション 100M  IP8","-"]
[null,"IP8","OCN光【光一括提供型】(IPoE ワイドプラン)","ファミリー 200M(NTT東日本)","IP8OCN光【光一括提供型】(IPoE ワイドプラン)ファミリー 200M(NTT東日本)","OCN 光 IPoE ワイドプラン ファミリー 200M  IP8","-"]
[null,"IP8","OCN光【光一括提供型】(IPoE ワイドプラン)","マンション 200M(NTT東日本)","IP8OCN光【光一括提供型】(IPoE ワイドプラン)マンション 200M(NTT東日本)","OCN 光 IPoE ワイドプラン マンション 200M  IP8","-"]
[null,"IP8","OCN光【光一括提供型】(IPoE ワイドプラン)","ファミリー 200M(NTT西日本)","IP8OCN光【光一括提供型】(IPoE ワイドプラン)ファミリー 200M(NTT西日本)","OCN 光 IPoE ワイドプラン ファミリー 200M  IP8","-"]
[null,"IP8","OCN光【光一括提供型】(IPoE ワイドプラン)","マンション 200M(NTT西日本)","IP8OCN光【光一括提供型】(IPoE ワイドプラン)マンション 200M(NTT西日本)","OCN 光 IPoE ワイドプラン マンション 200M  IP8","-"]
[null,"IP8","OCN光【光一括提供型】(IPoE ワイドプラン)","ファミリー 1G(NTT西日本)","IP8OCN光【光一括提供型】(IPoE ワイドプラン)ファミリー 1G(NTT西日本)","OCN 光 IPoE ワイドプラン ファミリー 1G  IP8","-"]
[null,"IP8","OCN光【光一括提供型】(IPoE ワイドプラン)","マンション 1G(NTT西日本)","IP8OCN光【光一括提供型】(IPoE ワイドプラン)マンション 1G(NTT西日本)","OCN 光 IPoE ワイドプラン マンション 1G  IP8","-"]
[null,"IP8","OCN光【光一括提供型】(IPoE ワイドプラン)","ファミリー 1G(NTT東日本)","IP8OCN光【光一括提供型】(IPoE ワイドプラン)ファミリー 1G(NTT東日本)","OCN 光 IPoE ワイドプラン ファミリー 1G  IP8","-"]
[null,"IP8","OCN光【光一括提供型】(IPoE ワイドプラン)","マンション 1G(NTT東日本)","IP8OCN光【光一括提供型】(IPoE ワイドプラン)マンション 1G(NTT東日本)","OCN 光 IPoE ワイドプラン マンション 1G  IP8","-"]
[null,"IP8","OCN ADSLサービス(F)","モアⅢ(47M)(NTT東日本)","IP8OCN ADSLサービス(F)モアⅢ(47M)(NTT東日本)","OCN ADSLサービス IP8(F)47M 東タイプ","xxx@ffa.ocn.ne.jp"]
[null,"IP8","OCN ADSLサービス(F)","モアスペシャル(47M)(NTT西日本)","IP8OCN ADSLサービス(F)モアスペシャル(47M)(NTT西日本)","OCN ADSLサービス IP8(F)47M 西タイプ","xxx@ffa.ocn.ne.jp"]
[null,"IP8","OCN ADSLサービス(F)","モアⅡ(40M)(NTT東日本)","IP8OCN ADSLサービス(F)モアⅡ(40M)(NTT東日本)","OCN ADSLサービス IP8(F)40M 東タイプ","xxx@ffa.ocn.ne.jp"]
[null,"IP8","OCN ADSLサービス(F)","モア40(40M)(NTT西日本)","IP8OCN ADSLサービス(F)モア40(40M)(NTT西日本)","OCN ADSLサービス IP8(F)40M 西タイプ","xxx@ffa.ocn.ne.jp"]
[null,"IP8","OCN ADSLサービス(F)","モア24(24M)(NTT西日本)","IP8OCN ADSLサービス(F)モア24(24M)(NTT西日本)","OCN ADSLサービス IP8(F)24M 西タイプ","xxx@ffa.ocn.ne.jp"]
[null,"IP8","OCN ADSLサービス(F)","モア(12M)(NTT東日本)","IP8OCN ADSLサービス(F)モア(12M)(NTT東日本)","OCN ADSLサービス IP8(F)12M 東タイプ","xxx@ffa.ocn.ne.jp"]
[null,"IP8","OCN ADSLサービス(F)","モア(12M)(NTT西日本)","IP8OCN ADSLサービス(F)モア(12M)(NTT西日本)","OCN ADSLサービス IP8(F)12M 西タイプ","xxx@ffa.ocn.ne.jp"]
[null,"IP8","OCN ADSLサービス(F)","8M(NTT東日本)","IP8OCN ADSLサービス(F)8M(NTT東日本)","OCN ADSLサービス IP8(F)8M 東タイプ","xxx@ffa.ocn.ne.jp"]
[null,"IP8","OCN ADSLサービス(F)","8M(NTT西日本)","IP8OCN ADSLサービス(F)8M(NTT西日本)","OCN ADSLサービス IP8(F)8M 西タイプ","xxx@ffa.ocn.ne.jp"]
[null,"IP8","OCN ADSLサービス(F)","1.5M(NTT東日本)","IP8OCN ADSLサービス(F)1.5M(NTT東日本)","OCN ADSLサービス IP8(F)1.5M 東タイプ","xxx@ffa.ocn.ne.jp"]
[null,"IP8","OCN ADSLサービス(F)","1.5M(NTT西日本)","IP8OCN ADSLサービス(F)1.5M(NTT西日本)","OCN ADSLサービス IP8(F)1.5M 西タイプ","xxx@ffa.ocn.ne.jp"]
[null,"IP8","OCN ADSLサービス(F)","モアⅢ(47M)・ビジネスタイプ(NTT東日本)","IP8OCN ADSLサービス(F)モアⅢ(47M)・ビジネスタイプ(NTT東日本)","OCN ADSLサービス IP8(F)ビジネス47M 東タイプ","xxx@ffab.ocn.ne.jp"]
[null,"IP8","OCN ADSLサービス(F)","モアⅡ(40M)・ビジネスタイプ(NTT東日本)","IP8OCN ADSLサービス(F)モアⅡ(40M)・ビジネスタイプ(NTT東日本)","OCN ADSLサービス IP8(F)ビジネス40M 東タイプ","xxx@ffab.ocn.ne.jp"]
[null,"IP8","OCN 光サービス(F)「光ネクスト」","ファミリータイプ(NTT東日本)","IP8OCN 光サービス(F)「光ネクスト」ファミリータイプ(NTT東日本)","OCN 光サービス IP8(F) 「光ネクスト」ファミリータイプ 東タイプ","xxx@bizf.ocn.ne.jp"]
[null,"IP8","OCN 光サービス(F)「光ネクスト」","ファミリータイプ(NTT西日本)","IP8OCN 光サービス(F)「光ネクスト」ファミリータイプ(NTT西日本)","OCN 光サービス IP8(F) 「光ネクスト」ファミリータイプ 西タイプ","xxx@bizf.ocn.ne.jp"]
[null,"IP8","OCN 光サービス(F)「光ネクスト」","ファミリー・ハイスピードタイプ(NTT東日本)","IP8OCN 光サービス(F)「光ネクスト」ファミリー・ハイスピードタイプ(NTT東日本)","OCN 光サービス IP8(F) 「光ネクスト」ファミリー･ハイスピードタイプ","xxx@bizf.ocn.ne.jp"]
[null,"IP8","OCN 光サービス(F)「光ネクスト」","ファミリー・ハイスピードタイプ(NTT西日本)","IP8OCN 光サービス(F)「光ネクスト」ファミリー・ハイスピードタイプ(NTT西日本)","OCN 光サービス IP8(F) 「光ネクスト」ファミリー･ハイスピードタイプ 西タイプ","xxx@bizf.ocn.ne.jp"]
[null,"IP8","OCN 光サービス(F)「光ネクスト」","ファミリー・スーパーハイスピードタイプ隼(NTT西日本)","IP8OCN 光サービス(F)「光ネクスト」ファミリー・スーパーハイスピードタイプ隼(NTT西日本)","OCN 光サービス IP8(F) 「光ネクスト」ファミリー･スーパーハイスピード隼 西タイプ","xxx@bizf.ocn.ne.jp"]
[null,"IP8","OCN 光サービス(F)「光ネクスト」","ビジネスタイプ(NTT東日本)","IP8OCN 光サービス(F)「光ネクスト」ビジネスタイプ(NTT東日本)","OCN 光サービス IP8(F) 「光ネクスト」ビジネスタイプ 東タイプ","xxx@bizf.ocn.ne.jp"]
[null,"IP8","OCN 光サービス(F)「光ネクスト」","ビジネスタイプ(NTT西日本)","IP8OCN 光サービス(F)「光ネクスト」ビジネスタイプ(NTT西日本)","OCN 光サービス IP8(F) 「光ネクスト」ビジネスタイプ 西タイプ","xxx@bizf.ocn.ne.jp"]
[null,"IP8","OCN 光サービス(F)「光ネクスト」","プライオ1(NTT東日本)","IP8OCN 光サービス(F)「光ネクスト」プライオ1(NTT東日本)","OCN 光サービス IP8(F) 「光ネクスト」プライオ1 東タイプ","xxx@bizf.ocn.ne.jp"]
[null,"IP8","OCN 光サービス(F)「光ネクスト」","プライオ10(NTT東日本)","IP8OCN 光サービス(F)「光ネクスト」プライオ10(NTT東日本)","OCN 光サービス IP8(F) 「光ネクスト」プライオ10 東タイプ","xxx@bizf.ocn.ne.jp"]
[null,"IP8","OCN 光サービス(F)「光ネクスト」","ギガファミリー・スマートタイプ(NTT東日本)","IP8OCN 光サービス(F)「光ネクスト」ギガファミリー・スマートタイプ(NTT東日本)","OCN 光サービス IP8(F) 「光ネクスト」ギガファミリー 東タイプ","xxx@bizf.ocn.ne.jp"]
[null,"IP8","OCN 光サービス(F)「光ネクスト」","ファミリー・ギガラインタイプ(NTT東日本)","IP8OCN 光サービス(F)「光ネクスト」ファミリー・ギガラインタイプ(NTT東日本)","OCN 光サービス IP8(F) 「光ネクスト」ファミリー･ギガライン 東タイプ","xxx@bizf.ocn.ne.jp"]
[null,"IP16","フレッツ・ADSL","1.5Mタイプ","IP16フレッツ・ADSL1.5Mタイプ","OCN ADSLアクセス IP16 「フレッツ」プラン 1M/1.5M/8M/12M/24M/40M/47Mタイプ","xxx@ffa.ocn.ne.jp"]
[null,"IP16","フレッツ・ADSL","8Mタイプ","IP16フレッツ・ADSL8Mタイプ","OCN ADSLアクセス IP16 「フレッツ」プラン 1M/1.5M/8M/12M/24M/40M/47Mタイプ","xxx@ffa.ocn.ne.jp"]
[null,"IP16","フレッツ・ADSL","モア(12M)","IP16フレッツ・ADSLモア(12M)","OCN ADSLアクセス IP16 「フレッツ」プラン 1M/1.5M/8M/12M/24M/40M/47Mタイプ","xxx@ffa.ocn.ne.jp"]
[null,"IP16","フレッツ・ADSL","モアⅡ(24Mタイプ)/モア24(24タイプ)","IP16フレッツ・ADSLモアⅡ(24Mタイプ)/モア24(24タイプ)","OCN ADSLアクセス IP16 「フレッツ」プラン 1M/1.5M/8M/12M/24M/40M/47Mタイプ","xxx@ffa.ocn.ne.jp"]
[null,"IP16","フレッツ・ADSL","モアⅡ(40M)/モア40(40Mタイプ)","IP16フレッツ・ADSLモアⅡ(40M)/モア40(40Mタイプ)","OCN ADSLアクセス IP16 「フレッツ」プラン 1M/1.5M/8M/12M/24M/40M/47Mタイプ","xxx@ffa.ocn.ne.jp"]
[null,"IP16","フレッツ・ADSL","モアⅢ(47M)・モアスペシャル(47M)","IP16フレッツ・ADSLモアⅢ(47M)・モアスペシャル(47M)","OCN ADSLアクセス IP16 「フレッツ」プラン 1M/1.5M/8M/12M/24M/40M/47Mタイプ","xxx@ffa.ocn.ne.jp"]
[null,"IP16","フレッツ・ADSL","モアⅢ(47M)・ビジネスタイプ(NTT東日本)","IP16フレッツ・ADSLモアⅢ(47M)・ビジネスタイプ(NTT東日本)","OCN ADSLアクセス IP16 「フレッツ」プラン ビジネスタイプ","xxx@ffab.ocn.ne.jp"]
[null,"IP16","フレッツ・ADSL","モアⅡ(24M)・ビジネスタイプ(NTT東日本)","IP16フレッツ・ADSLモアⅡ(24M)・ビジネスタイプ(NTT東日本)","OCN ADSLアクセス IP16 「フレッツ」プラン ビジネスタイプ","xxx@ffab.ocn.ne.jp"]
[null,"IP16","Bフレッツ","ベーシックタイプ(NTT東日本/NTT西日本)","IP16Bフレッツベーシックタイプ(NTT東日本/NTT西日本)","OCN 光「フレッツ」 IP16 ベーシックタイプ","xxx@fbfb2.ocn.ne.jp"]
[null,"IP16","Bフレッツ","ビジネスタイプ(NTT東日本/NTT西日本)","IP16Bフレッツビジネスタイプ(NTT東日本/NTT西日本)","OCN 光「フレッツ」 IP16 ビジネスタイプ","xxx@fbfh2.ocn.ne.jp"]
[null,"IP16","フレッツ 光ネクスト","ファミリータイプ(NTT東日本/NTT西日本)","IP16フレッツ 光ネクストファミリータイプ(NTT東日本/NTT西日本)","OCN 光「フレッツ」 IP16 ファミリータイプ","xxx@bizf.ocn.ne.jp"]
[null,"IP16","フレッツ 光ネクスト","ファミリー・ハイスピードタイプ(NTT東日本/NTT西日本)","IP16フレッツ 光ネクストファミリー・ハイスピードタイプ(NTT東日本/NTT西日本)","OCN 光「フレッツ」 IP16 ファミリータイプ","xxx@bizf.ocn.ne.jp"]
[null,"IP16","フレッツ 光ネクスト","ファミリー・スーパーハイスピードタイプ隼(NTT西日本)","IP16フレッツ 光ネクストファミリー・スーパーハイスピードタイプ隼(NTT西日本)","OCN 光「フレッツ」 IP16 ファミリータイプ","xxx@bizf.ocn.ne.jp"]
[null,"IP16","フレッツ 光ネクスト","ビジネスタイプ(NTT東日本/NTT西日本)","IP16フレッツ 光ネクストビジネスタイプ(NTT東日本/NTT西日本)","OCN 光「フレッツ」 IP16 ビジネスタイプ","xxx@bizf.ocn.ne.jp"]
[null,"IP16","フレッツ 光ネクスト","プライオ1(NTT東日本)","IP16フレッツ 光ネクストプライオ1(NTT東日本)","OCN 光「フレッツ」 IP16 プライオ1","xxx@bizf.ocn.ne.jp"]
[null,"IP16","フレッツ 光ネクスト","プライオ10(NTT東日本)","IP16フレッツ 光ネクストプライオ10(NTT東日本)","OCN 光「フレッツ」 IP16 プライオ10","xxx@bizf.ocn.ne.jp"]
[null,"IP16","フレッツ 光ネクスト","ギガファミリー・スマートタイプ(NTT東日本)","IP16フレッツ 光ネクストギガファミリー・スマートタイプ(NTT東日本)","OCN 光「フレッツ」 IP16 ギガファミリー","xxx@bizf.ocn.ne.jp"]
[null,"IP16","フレッツ 光ネクスト","ギガマンション・スマートタイプ(NTT東日本)","IP16フレッツ 光ネクストギガマンション・スマートタイプ(NTT東日本)","OCN 光「フレッツ」 IP16 ギガファミリー","xxx@bizf.ocn.ne.jp"]
[null,"IP16","フレッツ 光ネクスト","ファミリー・ギガラインタイプ(NTT東日本)","IP16フレッツ 光ネクストファミリー・ギガラインタイプ(NTT東日本)","OCN 光「フレッツ」 IP16 ギガファミリー","xxx@bizf.ocn.ne.jp"]
[null,"IP16","フレッツ 光ネクスト","マンション・ギガラインタイプ(NTT東日本)","IP16フレッツ 光ネクストマンション・ギガラインタイプ(NTT東日本)","OCN 光「フレッツ」 IP16 ギガファミリー","xxx@bizf.ocn.ne.jp"]
[null,"IP16","フレッツ 光ライト","ファミリータイプ(NTT東日本/NTT西日本)","IP16フレッツ 光ライトファミリータイプ(NTT東日本/NTT西日本)","OCN 光「フレッツ」 IP16 ファミリータイプ","xxx@bizf.ocn.ne.jp"]
[null,"IP16","OCN光【光一括提供型】","ファミリー 100M(NTT東日本)",{"$f":"B324&C324&D324","v":"IP16OCN光【光一括提供型】ファミリー 100M(NTT東日本)"},"OCN 光 ファミリー 100M IP16","xxx@bizf.ocn.ne.jp"]
[null,"IP16","OCN光【光一括提供型】","ファミリー 100M(NTT西日本)","IP16OCN光【光一括提供型】ファミリー 100M(NTT西日本)","OCN 光 ファミリー 100M IP16","xxx@bizf.ocn.ne.jp"]
[null,"IP16","OCN光【光一括提供型】","ファミリー 200M(NTT東日本)","IP16OCN光【光一括提供型】ファミリー 200M(NTT東日本)","OCN 光 ファミリー 200M IP16","xxx@bizf.ocn.ne.jp"]
[null,"IP16","OCN光【光一括提供型】","ファミリー 200M(NTT西日本)","IP16OCN光【光一括提供型】ファミリー 200M(NTT西日本)","OCN 光 ファミリー 200M IP16","xxx@bizf.ocn.ne.jp"]
[null,"IP16","OCN光【光一括提供型】","ファミリー 1G(NTT西日本)","IP16OCN光【光一括提供型】ファミリー 1G(NTT西日本)","OCN 光 ファミリー 1G IP16","xxx@bizf.ocn.ne.jp"]
[null,"IP16","OCN光【光一括提供型】","ファミリー 1G(NTT東日本)","IP16OCN光【光一括提供型】ファミリー 1G(NTT東日本)","OCN 光 ファミリー 1G IP16","xxx@bizf.ocn.ne.jp"]
[null,"IP16","OCN光【光一括提供型】","マンション 1G(NTT東日本)","IP16OCN光【光一括提供型】マンション 1G(NTT東日本)","OCN 光 マンション 1G IP16","xxx@bizf.ocn.ne.jp"]
[null,"IP16","フレッツ 光ネクスト(IPoE 標準プラン)","NTT東日本","IP16フレッツ 光ネクスト(IPoE 標準プラン)NTT東日本","OCN 光「フレッツ」 IPoE 標準プラン IP16","-"]
[null,"IP16","フレッツ 光ネクスト(IPoE 標準プラン)","NTT西日本","IP16フレッツ 光ネクスト(IPoE 標準プラン)NTT西日本","OCN 光「フレッツ」 IPoE 標準プラン IP16","-"]
[null,"IP16","フレッツ 光ネクスト(IPoE ワイドプラン)","NTT東日本","IP16フレッツ 光ネクスト(IPoE ワイドプラン)NTT東日本","OCN 光「フレッツ」 IPoE ワイドプラン IP16","-"]
[null,"IP16","フレッツ 光ネクスト(IPoE ワイドプラン)","NTT西日本","IP16フレッツ 光ネクスト(IPoE ワイドプラン)NTT西日本","OCN 光「フレッツ」 IPoE ワイドプラン IP16","-"]
[null,"IP16","OCN光【光一括提供型】(IPoE 標準プラン)","ファミリー 100M(NTT東日本)","IP16OCN光【光一括提供型】(IPoE 標準プラン)ファミリー 100M(NTT東日本)","OCN 光 IPoE 標準プラン ファミリー 100M  IP16","-"]
[null,"IP16","OCN光【光一括提供型】(IPoE 標準プラン)","ファミリー 100M(NTT西日本)","IP16OCN光【光一括提供型】(IPoE 標準プラン)ファミリー 100M(NTT西日本)","OCN 光 IPoE 標準プラン ファミリー 100M  IP16","-"]
[null,"IP16","OCN光【光一括提供型】(IPoE 標準プラン)","ファミリー 200M(NTT東日本)","IP16OCN光【光一括提供型】(IPoE 標準プラン)ファミリー 200M(NTT東日本)","OCN 光 IPoE 標準プラン ファミリー 200M  IP16","-"]
[null,"IP16","OCN光【光一括提供型】(IPoE 標準プラン)","ファミリー 200M(NTT西日本)","IP16OCN光【光一括提供型】(IPoE 標準プラン)ファミリー 200M(NTT西日本)","OCN 光 IPoE 標準プラン ファミリー 200M  IP16","-"]
[null,"IP16","OCN光【光一括提供型】(IPoE 標準プラン)","ファミリー 1G(NTT西日本)","IP16OCN光【光一括提供型】(IPoE 標準プラン)ファミリー 1G(NTT西日本)","OCN 光 IPoE 標準プラン ファミリー 1G  IP16","-"]
[null,"IP16","OCN光【光一括提供型】(IPoE 標準プラン)","ファミリー 1G(NTT東日本)","IP16OCN光【光一括提供型】(IPoE 標準プラン)ファミリー 1G(NTT東日本)","OCN 光 IPoE 標準プラン ファミリー 1G  IP16","-"]
[null,"IP16","OCN光【光一括提供型】(IPoE 標準プラン)","マンション 1G(NTT東日本)","IP16OCN光【光一括提供型】(IPoE 標準プラン)マンション 1G(NTT東日本)","OCN 光 IPoE 標準プラン マンション 1G  IP16","-"]
[null,"IP16","OCN光【光一括提供型】(IPoE ワイドプラン)","ファミリー 100M(NTT東日本)","IP16OCN光【光一括提供型】(IPoE ワイドプラン)ファミリー 100M(NTT東日本)","OCN 光 IPoE ワイドプラン ファミリー 100M  IP16","-"]
[null,"IP16","OCN光【光一括提供型】(IPoE ワイドプラン)","ファミリー 100M(NTT西日本)","IP16OCN光【光一括提供型】(IPoE ワイドプラン)ファミリー 100M(NTT西日本)","OCN 光 IPoE ワイドプラン ファミリー 100M  IP16","-"]
[null,"IP16","OCN光【光一括提供型】(IPoE ワイドプラン)","ファミリー 200M(NTT東日本)","IP16OCN光【光一括提供型】(IPoE ワイドプラン)ファミリー 200M(NTT東日本)","OCN 光 IPoE ワイドプラン ファミリー 200M  IP16","-"]
[null,"IP16","OCN光【光一括提供型】(IPoE ワイドプラン)","ファミリー 200M(NTT西日本)","IP16OCN光【光一括提供型】(IPoE ワイドプラン)ファミリー 200M(NTT西日本)","OCN 光 IPoE ワイドプラン ファミリー 200M  IP16","-"]
[null,"IP16","OCN光【光一括提供型】(IPoE ワイドプラン)","ファミリー 1G(NTT西日本)","IP16OCN光【光一括提供型】(IPoE ワイドプラン)ファミリー 1G(NTT西日本)","OCN 光 IPoE ワイドプラン ファミリー 1G  IP16","-"]
[null,"IP16","OCN光【光一括提供型】(IPoE ワイドプラン)","ファミリー 1G(NTT東日本)","IP16OCN光【光一括提供型】(IPoE ワイドプラン)ファミリー 1G(NTT東日本)","OCN 光 IPoE ワイドプラン ファミリー 1G  IP16","-"]
[null,"IP16","OCN光【光一括提供型】(IPoE ワイドプラン)","マンション 1G(NTT東日本)","IP16OCN光【光一括提供型】(IPoE ワイドプラン)マンション 1G(NTT東日本)","OCN 光 IPoE ワイドプラン マンション 1G  IP16","-"]
[null,"IP16","OCN ADSLサービス(F)","モアⅢ(47M)(NTT東日本)","IP16OCN ADSLサービス(F)モアⅢ(47M)(NTT東日本)","OCN ADSLサービス IP16(F)47M 東タイプ","xxx@ffa.ocn.ne.jp"]
[null,"IP16","OCN ADSLサービス(F)","モアスペシャル(47M)(NTT西日本)","IP16OCN ADSLサービス(F)モアスペシャル(47M)(NTT西日本)","OCN ADSLサービス IP16(F)47M 西タイプ","xxx@ffa.ocn.ne.jp"]
[null,"IP16","OCN ADSLサービス(F)","モアⅡ(40M)(NTT東日本)","IP16OCN ADSLサービス(F)モアⅡ(40M)(NTT東日本)","OCN ADSLサービス IP16(F)40M 東タイプ","xxx@ffa.ocn.ne.jp"]
[null,"IP16","OCN ADSLサービス(F)","モア40(40M)(NTT西日本)","IP16OCN ADSLサービス(F)モア40(40M)(NTT西日本)","OCN ADSLサービス IP16(F)40M 西タイプ","xxx@ffa.ocn.ne.jp"]
[null,"IP16","OCN ADSLサービス(F)","モア24(24M)(NTT西日本)","IP16OCN ADSLサービス(F)モア24(24M)(NTT西日本)","OCN ADSLサービス IP16(F)24M 西タイプ","xxx@ffa.ocn.ne.jp"]
[null,"IP16","OCN ADSLサービス(F)","モア(12M)(NTT東日本)","IP16OCN ADSLサービス(F)モア(12M)(NTT東日本)","OCN ADSLサービス IP16(F)12M 東タイプ","xxx@ffa.ocn.ne.jp"]
[null,"IP16","OCN ADSLサービス(F)","モア(12M)(NTT西日本)","IP16OCN ADSLサービス(F)モア(12M)(NTT西日本)","OCN ADSLサービス IP16(F)12M 西タイプ","xxx@ffa.ocn.ne.jp"]
[null,"IP16","OCN ADSLサービス(F)","8M(NTT東日本)","IP16OCN ADSLサービス(F)8M(NTT東日本)","OCN ADSLサービス IP16(F)8M 東タイプ","xxx@ffa.ocn.ne.jp"]
[null,"IP16","OCN ADSLサービス(F)","8M(NTT西日本)","IP16OCN ADSLサービス(F)8M(NTT西日本)","OCN ADSLサービス IP16(F)8M 西タイプ","xxx@ffa.ocn.ne.jp"]
[null,"IP16","OCN ADSLサービス(F)","1.5M(NTT東日本)","IP16OCN ADSLサービス(F)1.5M(NTT東日本)","OCN ADSLサービス IP16(F)1.5M 東タイプ","xxx@ffa.ocn.ne.jp"]
[null,"IP16","OCN ADSLサービス(F)","1.5M(NTT西日本)","IP16OCN ADSLサービス(F)1.5M(NTT西日本)","OCN ADSLサービス IP16(F)1.5M 西タイプ","xxx@ffa.ocn.ne.jp"]
[null,"IP16","OCN ADSLサービス(F)","モアⅢ(47M)・ビジネスタイプ(NTT東日本)","IP16OCN ADSLサービス(F)モアⅢ(47M)・ビジネスタイプ(NTT東日本)","OCN ADSLサービス IP16(F)ビジネス47M 東タイプ","xxx@ffab.ocn.ne.jp"]
[null,"IP16","OCN ADSLサービス(F)","モアⅡ(40M)・ビジネスタイプ(NTT東日本)","IP16OCN ADSLサービス(F)モアⅡ(40M)・ビジネスタイプ(NTT東日本)","OCN ADSLサービス IP16(F)ビジネス40M 東タイプ","xxx@ffab.ocn.ne.jp"]
[null,"IP16","OCN 光サービス(F)「光ネクスト」","ファミリータイプ(NTT東日本)","IP16OCN 光サービス(F)「光ネクスト」ファミリータイプ(NTT東日本)","OCN 光サービス IP16(F) 「光ネクスト」ファミリータイプ","xxx@bizf.ocn.ne.jp"]
[null,"IP16","OCN 光サービス(F)「光ネクスト」","ファミリータイプ(NTT西日本)","IP16OCN 光サービス(F)「光ネクスト」ファミリータイプ(NTT西日本)","OCN 光サービス IP16(F) 「光ネクスト」ファミリータイプ","xxx@bizf.ocn.ne.jp"]
[null,"IP16","OCN 光サービス(F)「光ネクスト」","ファミリー・ハイスピードタイプ(NTT東日本)","IP16OCN 光サービス(F)「光ネクスト」ファミリー・ハイスピードタイプ(NTT東日本)","OCN 光サービス IP16(F) 「光ネクスト」ファミリー･ハイスピードタイプ","xxx@bizf.ocn.ne.jp"]
[null,"IP16","OCN 光サービス(F)「光ネクスト」","ファミリー・ハイスピードタイプ(NTT西日本)","IP16OCN 光サービス(F)「光ネクスト」ファミリー・ハイスピードタイプ(NTT西日本)","OCN 光サービス IP16(F) 「光ネクスト」ファミリー･ハイスピードタイプ 西タイプ","xxx@bizf.ocn.ne.jp"]
[null,"IP16","OCN 光サービス(F)「光ネクスト」","ファミリー・スーパーハイスピードタイプ隼(NTT西日本)","IP16OCN 光サービス(F)「光ネクスト」ファミリー・スーパーハイスピードタイプ隼(NTT西日本)","OCN 光サービス IP16(F) 「光ネクスト」ファミリー･スーパーハイスピード隼 西タイプ","xxx@bizf.ocn.ne.jp"]
[null,"IP16","OCN 光サービス(F)「光ネクスト」","ビジネスタイプ(NTT東日本)","IP16OCN 光サービス(F)「光ネクスト」ビジネスタイプ(NTT東日本)","OCN 光サービス IP16(F) 「光ネクスト」ビジネスタイプ 東タイプ","xxx@bizf.ocn.ne.jp"]
[null,"IP16","OCN 光サービス(F)「光ネクスト」","ビジネスタイプ(NTT西日本)","IP16OCN 光サービス(F)「光ネクスト」ビジネスタイプ(NTT西日本)","OCN 光サービス IP16(F) 「光ネクスト」ビジネスタイプ 西タイプ","xxx@bizf.ocn.ne.jp"]
[null,"IP16","OCN 光サービス(F)「光ネクスト」","プライオ1(NTT東日本)","IP16OCN 光サービス(F)「光ネクスト」プライオ1(NTT東日本)","OCN 光サービス IP16(F) 「光ネクスト」プライオ1 東タイプ","xxx@bizf.ocn.ne.jp"]
[null,"IP16","OCN 光サービス(F)「光ネクスト」","プライオ10(NTT東日本)","IP16OCN 光サービス(F)「光ネクスト」プライオ10(NTT東日本)","OCN 光サービス IP16(F) 「光ネクスト」プライオ10 東タイプ","xxx@bizf.ocn.ne.jp"]
[null,"IP16","OCN 光サービス(F)「光ネクスト」","ギガファミリー・スマートタイプ(NTT東日本)","IP16OCN 光サービス(F)「光ネクスト」ギガファミリー・スマートタイプ(NTT東日本)","OCN 光サービス IP16(F) 「光ネクスト」ギガファミリー 東タイプ","xxx@bizf.ocn.ne.jp"]
[null,"IP16","OCN 光サービス(F)「光ネクスト」","ファミリー・ギガラインタイプ(NTT東日本)","IP16OCN 光サービス(F)「光ネクスト」ファミリー・ギガラインタイプ(NTT東日本)","OCN 光サービス IP16(F) 「光ネクスト」ファミリー･ギガライン 東タイプ","xxx@bizf.ocn.ne.jp"]
[null,"IP32","Bフレッツ","ビジネスタイプ(NTT東日本/NTT西日本)","IP32Bフレッツビジネスタイプ(NTT東日本/NTT西日本)","OCN 光「フレッツ」 IP32 ビジネスタイプ","xxx@fbfh2.ocn.ne.jp"]
[null,"IP32","フレッツ 光ネクスト","ビジネスタイプ(NTT東日本/NTT西日本)","IP32フレッツ 光ネクストビジネスタイプ(NTT東日本/NTT西日本)","OCN 光「フレッツ」 IP32 ビジネスタイプ","xxx@bizf.ocn.ne.jp"]
[null,"IP32","フレッツ 光ネクスト","プライオ10(NTT東日本)","IP32フレッツ 光ネクストプライオ10(NTT東日本)","OCN 光「フレッツ」 IP32 プライオ10","xxx@bizf.ocn.ne.jp"]
[null,"IP32","OCN 光サービス(F)「光ネクスト」","ビジネスタイプ(NTT東日本)","IP32OCN 光サービス(F)「光ネクスト」ビジネスタイプ(NTT東日本)","OCN 光サービス IP32(F) 「光ネクスト」ビジネスタイプ 東タイプ","xxx@bizf.ocn.ne.jp"]
[null,"IP32","OCN 光サービス(F)「光ネクスト」","ビジネスタイプ(NTT西日本)","IP32OCN 光サービス(F)「光ネクスト」ビジネスタイプ(NTT西日本)","OCN 光サービス IP32(F) 「光ネクスト」ビジネスタイプ 西タイプ","xxx@bizf.ocn.ne.jp"]
[null,"IP32","OCN 光サービス(F)「光ネクスト」","プライオ10(NTT東日本)","IP32OCN 光サービス(F)「光ネクスト」プライオ10(NTT東日本)","OCN 光サービス IP32(F) 「光ネクスト」プライオ10 東タイプ","xxx@bizf.ocn.ne.jp"]
[null,"IP64","Bフレッツ","ビジネスタイプ(NTT東日本/NTT西日本)","IP64Bフレッツビジネスタイプ(NTT東日本/NTT西日本)","OCN 光「フレッツ」 IP64 ビジネスタイプ","xxx@fbfh2.ocn.ne.jp"]
[null,"IP64","フレッツ 光ネクスト","ビジネスタイプ(NTT東日本/NTT西日本)","IP64フレッツ 光ネクストビジネスタイプ(NTT東日本/NTT西日本)","OCN 光「フレッツ」 IP64 ビジネスタイプ","xxx@bizf.ocn.ne.jp"]
[null,"IP64","フレッツ 光ネクスト","プライオ10(NTT東日本)","IP64フレッツ 光ネクストプライオ10(NTT東日本)","OCN 光「フレッツ」 IP64 プライオ10","xxx@bizf.ocn.ne.jp"]
[null,"IP64","OCN 光サービス(F)「光ネクスト」","ビジネスタイプ(NTT東日本)","IP64OCN 光サービス(F)「光ネクスト」ビジネスタイプ(NTT東日本)","OCN 光サービス IP64(F) 「光ネクスト」ビジネスタイプ 東タイプ","xxx@bizf.ocn.ne.jp"]
[null,"IP64","OCN 光サービス(F)「光ネクスト」","ビジネスタイプ(NTT西日本)","IP64OCN 光サービス(F)「光ネクスト」ビジネスタイプ(NTT西日本)","OCN 光サービス IP64(F) 「光ネクスト」ビジネスタイプ 西タイプ","xxx@bizf.ocn.ne.jp"]
[null,"IP64","OCN 光サービス(F)「光ネクスト」","プライオ10(NTT東日本)","IP64OCN 光サービス(F)「光ネクスト」プライオ10(NTT東日本)","OCN 光サービス IP64(F) 「光ネクスト」プライオ10 東タイプ","xxx@bizf.ocn.ne.jp"]
[null,"forVPNライト","フレッツ・ADSL","1.5Mタイプ","forVPNライトフレッツ・ADSL1.5Mタイプ","OCN ADSLアクセス 「フレッツ」プラン forVPNライト 1M/1.5M/8M/12M/24M/40M/47Mタイプ","xxx@dfa.ocn.ne.jp"]
[null,"forVPNライト","フレッツ・ADSL","8Mタイプ","forVPNライトフレッツ・ADSL8Mタイプ","OCN ADSLアクセス 「フレッツ」プラン forVPNライト 1M/1.5M/8M/12M/24M/40M/47Mタイプ","xxx@dfa.ocn.ne.jp"]
[null,"forVPNライト","フレッツ・ADSL","モア(12M)","forVPNライトフレッツ・ADSLモア(12M)","OCN ADSLアクセス 「フレッツ」プラン forVPNライト 1M/1.5M/8M/12M/24M/40M/47Mタイプ","xxx@dfa.ocn.ne.jp"]
[null,"forVPNライト","フレッツ・ADSL","モアⅡ(24Mタイプ)/モア24(24タイプ)",{"$f":"B388&C388&D388","v":"forVPNライトフレッツ・ADSLモアⅡ(24Mタイプ)/モア24(24タイプ)"},"OCN ADSLアクセス 「フレッツ」プラン forVPNライト 1M/1.5M/8M/12M/24M/40M/47Mタイプ","xxx@dfa.ocn.ne.jp"]
[null,"forVPNライト","フレッツ・ADSL","モアⅡ(40M)/モア40(40Mタイプ)","forVPNライトフレッツ・ADSLモアⅡ(40M)/モア40(40Mタイプ)","OCN ADSLアクセス 「フレッツ」プラン forVPNライト 1M/1.5M/8M/12M/24M/40M/47Mタイプ","xxx@dfa.ocn.ne.jp"]
[null,"forVPNライト","フレッツ・ADSL","モアⅢ(47M)・モアスペシャル(47M)","forVPNライトフレッツ・ADSLモアⅢ(47M)・モアスペシャル(47M)","OCN ADSLアクセス 「フレッツ」プラン forVPNライト 1M/1.5M/8M/12M/24M/40M/47Mタイプ","xxx@dfa.ocn.ne.jp"]
[null,"forVPNライト","フレッツ・ADSL","モアⅢ(47M)・ビジネスタイプ(NTT東日本)","forVPNライトフレッツ・ADSLモアⅢ(47M)・ビジネスタイプ(NTT東日本)","OCN ADSLアクセス 「フレッツ」プラン forVPNライト ビジネスタイプ","xxx@dfab.ocn.ne.jp"]
[null,"forVPNライト","フレッツ・ADSL","モアⅡ(24M)・ビジネスタイプ(NTT東日本)","forVPNライトフレッツ・ADSLモアⅡ(24M)・ビジネスタイプ(NTT東日本)","OCN ADSLアクセス 「フレッツ」プラン forVPNライト ビジネスタイプ","xxx@dfab.ocn.ne.jp"]
[null,"forVPNライト","フレッツ・ISDN",null,"forVPNライトフレッツ・ISDN","OCN ISDNアクセス 「フレッツ」プラン forVPNライト","xxx@dfi.ocn.ne.jp"]
[null,"forVPNライト","Bフレッツ","ニューファミリータイプ(NTT東日本)","forVPNライトBフレッツニューファミリータイプ(NTT東日本)","OCN 光「フレッツ」 forVPNライト ファミリータイプ","xxx@dbnf.ocn.ne.jp"]
[null,"forVPNライト","Bフレッツ","ベーシックタイプ(NTT東日本/NTT西日本)","forVPNライトBフレッツベーシックタイプ(NTT東日本/NTT西日本)","OCN 光「フレッツ」 forVPNライト ベーシックタイプ","xxx@dbfb.ocn.ne.jp"]
[null,"forVPNライト","Bフレッツ","ビル・マンションタイプ(NTT東日本/NTT西日本)","forVPNライトBフレッツビル・マンションタイプ(NTT東日本/NTT西日本)","OCN 光「フレッツ」 forVPNライト マンションタイプ","xxx@dbfm.ocn.ne.jp"]
[null,"forVPNライト","フレッツ 光ネクスト","ファミリータイプ(NTT東日本/NTT西日本)","forVPNライトフレッツ 光ネクストファミリータイプ(NTT東日本/NTT西日本)","OCN 光「フレッツ」 forVPNライト ファミリータイプ","xxx@bizd.ocn.ne.jp"]
[null,"forVPNライト","フレッツ 光ネクスト","ファミリー・ハイスピードタイプ(NTT東日本/NTT西日本)","forVPNライトフレッツ 光ネクストファミリー・ハイスピードタイプ(NTT東日本/NTT西日本)","OCN 光「フレッツ」 forVPNライト ファミリータイプ","xxx@bizd.ocn.ne.jp"]
[null,"forVPNライト","フレッツ 光ネクスト","マンションタイプ(NTT東日本/NTT西日本)","forVPNライトフレッツ 光ネクストマンションタイプ(NTT東日本/NTT西日本)","OCN 光「フレッツ」 forVPNライト マンションタイプ","xxx@bizd.ocn.ne.jp"]
[null,"forVPNライト","フレッツ 光ネクスト","マンション・ハイスピードタイプ(NTT東日本/NTT西日本)","forVPNライトフレッツ 光ネクストマンション・ハイスピードタイプ(NTT東日本/NTT西日本)","OCN 光「フレッツ」 forVPNライト マンションタイプ","xxx@bizd.ocn.ne.jp"]
[null,"forVPNライト","フレッツ 光ネクスト","ファミリー・スーパーハイスピードタイプ隼(NTT西日本)","forVPNライトフレッツ 光ネクストファミリー・スーパーハイスピードタイプ隼(NTT西日本)","OCN 光「フレッツ」 forVPNライト ファミリータイプ","xxx@bizd.ocn.ne.jp"]
[null,"forVPNライト","フレッツ 光ネクスト","マンション・スーパーハイスピードタイプ隼(NTT西日本)","forVPNライトフレッツ 光ネクストマンション・スーパーハイスピードタイプ隼(NTT西日本)","OCN 光「フレッツ」 forVPNライト マンションタイプ","xxx@bizd.ocn.ne.jp"]
[null,"forVPNライト","フレッツ 光ネクスト","ギガファミリー・スマートタイプ(NTT東日本)","forVPNライトフレッツ 光ネクストギガファミリー・スマートタイプ(NTT東日本)","OCN 光「フレッツ」 forVPNライト ギガファミリー","xxx@bizd.ocn.ne.jp"]
[null,"forVPNライト","フレッツ 光ネクスト","ギガマンション・スマートタイプ(NTT東日本)","forVPNライトフレッツ 光ネクストギガマンション・スマートタイプ(NTT東日本)","OCN 光「フレッツ」 forVPNライト ギガファミリー","xxx@bizd.ocn.ne.jp"]
[null,"forVPNライト","フレッツ 光ネクスト","ファミリー・ギガラインタイプ(NTT東日本)","forVPNライトフレッツ 光ネクストファミリー・ギガラインタイプ(NTT東日本)","OCN 光「フレッツ」 forVPNライト ギガファミリー","xxx@bizd.ocn.ne.jp"]
[null,"forVPNライト","フレッツ 光ネクスト","マンション・ギガラインタイプ(NTT東日本)","forVPNライトフレッツ 光ネクストマンション・ギガラインタイプ(NTT東日本)","OCN 光「フレッツ」 forVPNライト ギガファミリー","xxx@bizd.ocn.ne.jp"]
[null,"forVPNライト","フレッツ 光ライト","ファミリータイプ","forVPNライトフレッツ 光ライトファミリータイプ","OCN 光「フレッツ」 forVPNライト ファミリータイプ","xxx@bizd.ocn.ne.jp"]
[null,"forVPNライト","フレッツ 光ライト","マンションタイプ","forVPNライトフレッツ 光ライトマンションタイプ","OCN 光「フレッツ」 forVPNライト マンションタイプ","xxx@bizd.ocn.ne.jp"]

{"sheet":"改版履歴","index":5,"n_rows":0,"n_cols":0,"rows_kept":0,"cut":false,"hidden":true,"merged":[]}